Cogmind - Beta 15 @@@ ROGUE MODE // 2025.05.23 @ 08:36:19 Player: Savant Result: Assimilated 0b10! Performance ------------- Evolutions (9) 4500 Regions Visited (30) 6000 Robots Destroyed (358) 1790 Value Destroyed (26955) 26955 Prototype IDs (80) 1600 Alien Tech Used (0) 0 Bonus (39724) 39724 TOTAL SCORE: 80569 Bonus ------- High Alert Combat Kills 1692 Follower Combat Kills 19409 Entered Garrisons 2200 Used RIF Installer 6000 Destroyed MAIN.C Guards 500 Met MAIN.C 5000 Used 0b10 Conduit 2000 Win 3000 Friendly Fire -77 Cogmind --------- Core Integrity 703/1600 Matter 277/300 Energy 99/100 System Corruption 43% Temperature Cool (0) Movement Core (50) Location 0b10 Command Parts ------- > --- POWER (3) -------- (None) > --- PROPULSION (6) --- Heavy Treads > --- UTILITY (12) ----- Advanced Cooling System Advanced Weapon Cycler Advanced Hacking Suite Relay Coupler [C] (5) Relay Coupler [Sentry] (37) Relay Coupler [Sentry] (34) Relay Coupler [Hunter] (11) Relay Coupler [Hunter] (25) > --- WEAPON (4) ------- (None) > --- INVENTORY (5) ---- Quantum Reactor Advanced Energy Well (500) Advanced Matter Compressor (244) Neutron Missile Launcher Advanced Remote Datajack Peak State ------------ > --- POWER ------------ Quantum Reactor Quantum Reactor Quantum Reactor > --- PROPULSION ------- Improved Heavy Siege Treads Centrium Heavy Treads Biometal Heavy Treads > --- UTILITY ---------- Advanced Cooling System Advanced Cooling System Huge Storage Unit Advanced Weapon Cycler Advanced EM Disruption Field Advanced Force Field Advanced Point Defense System Advanced Hacking Suite Improved System Shield Relay Coupler [NC] Relay Coupler [C] Relay Coupler [Hunter] > --- WEAPON ----------- Multirail Multirail Multirail Multirail > --- INVENTORY -------- Heavy Treads Armored Heavy Treads Advanced Energy Well Advanced Matter Compressor Advanced Force Field Relay Coupler [Sentry] Relay Coupler [Sentry] Relay Coupler [Hunter] Enhanced Nova Cannon Enhanced Nova Cannon Heavy Hardcell Cannon Graviton Cannon Neutron Missile Launcher Advanced Remote Datajack Advanced Remote Datajack [Rating: 213] Favorites ----------- Power Quantum Reactor Engine Ion Engine Power Core Nuclear Core Reactor Quantum Reactor Propulsion Armored Wheel Treads Centrium Heavy Treads Leg Centrium Leg Wheel Armored Wheel Hover Unit Improved Antigrav System Utility Huge Storage Unit Device Advanced Force Field Storage Huge Storage Unit Processor Machine Analyzer Hackware Relay Coupler [Hunter] Protection Hardened Medium Armor Plating Weapon Remote Datajack Energy Gun Cooled Pulse Rifle Energy Cannon Enhanced Nova Cannon Ballistic Gun Multirail Ballistic Cannon Heavy Hardcell Cannon Launcher Long-range Missile Launcher Special Weapon Remote Datajack Impact Weapon Powered Hammer Slashing Weapon Molecular Scythe Piercing Weapon Plasma Lance Special Melee Weapon Datajack Build | -11 -10 -10 -8 -8 -8 -8 -7 -7 -7 -7 -7 -7 -6 -6 -6 -6 -5 -5 -4 -4 -4 -4 -3 -3 -2 -2 -1 -1 -1 -1 ------- Run | Yrd Mat Sub Mat Gar Mat Gar Fac Was Fac Gar Fac Gar Fac Gar Fac Gar Fac Gar Fac Gar Arm Lab Res Gar Res Gar Acc Gar Acc Com Slots Evolved 18 | . . . 4 . . . 2 . . . . . 2 . . . 2 . 2 . . . 2 . 2 . 2 . . . Power 2 | . . . . . . . . . . . . . . . . . . . 1 . . . . . 1 . . . . . Propulsion 4 | . . . 2 . . . . . . . . . . . . . . . . . . . 2 . . . . . . . Utility 10 | . . . 2 . . . 2 . . . . . 1 . . . 2 . 1 . . . . . 1 . 1 . . . Weapon 2 | . . . . . . . . . . . . . 1 . . . . . . . . . . . . . 1 . . . Parts Attached 466 | 8 10 12 28 8 14 13 7 . 11 9 25 11 34 16 15 26 22 20 23 19 19 . 5 13 27 10 13 11 15 22 Power 44 | 2 1 2 2 1 . 1 . . . 1 . . 2 1 . 2 . 4 1 6 1 . 1 1 6 . 3 . 2 4 Engine 8 | 2 1 2 1 . . . . . . . . . 1 . . 1 . . . . . . . . . . . . . . Core 6 | . . . 1 1 . 1 . . . 1 . . . 1 . . . 1 . . . . . . . . . . . . Reactor 30 | . . . . . . . . . . . . . 1 . . 1 . 3 1 6 1 . 1 1 6 . 3 . 2 4 Propulsion 58 | 2 . 3 11 2 1 3 1 . 1 1 . 2 . 4 1 4 1 3 . 2 2 . 1 1 4 . . . 4 4 Treads 47 | 2 . 1 7 1 1 2 . . 1 1 . 2 . 4 1 4 1 3 . 1 2 . 1 1 4 . . . 4 3 Leg 1 | . . . . . . . . . . . . . . . . . . . . 1 . . . . . . . . . . Wheel 9 | . . 2 4 1 . 1 1 . . . . . . . . . . . . . . . . . . . . . . . Hover 1 | . . . . . . . . . . . . . . . . . . . . . . . . . . . . . . 1 Flight . | . . . . . . . . . . . . . . . . . . . . . . . . . . . . . . . Utility 264 | 2 2 3 9 1 7 7 6 . 6 6 17 7 28 7 13 17 17 9 15 8 14 . 2 8 13 7 7 10 8 8 Device 59 | 1 1 . 3 . . . . . 1 1 6 . 8 1 4 4 3 2 4 2 1 . 2 2 5 . 1 2 2 3 Storage 9 | 1 1 1 . . . . . . 1 . 1 1 1 . 1 . . . 1 . . . . . . . . . . . Processor 8 | . . . 1 . . . . . 1 . 1 . 2 1 1 1 . . . . . . . . . . . . . . Hackware 155 | . . . 1 . 5 5 4 . 2 5 7 6 13 2 6 10 13 7 10 6 10 . . 6 7 7 6 8 5 4 Protection 33 | . . 2 4 1 2 2 2 . 1 . 2 . 4 3 1 2 1 . . . 3 . . . 1 . . . 1 1 Artifact . | . . . . . . . . . . . . . . . . . . . . . . . . . . . . . . . Weapon 100 | 2 7 4 6 4 6 2 . . 4 1 8 2 4 4 1 3 4 4 7 3 2 . 1 3 4 3 3 1 1 6 Energy Gun 10 | 1 1 1 2 . . . . . 2 . 1 . 1 . . 1 . . . . . . . . . . . . . . Energy Cannon 18 | . . 1 1 . 2 . . . . . 2 . . . . 1 1 . 1 2 1 . . 2 . 1 . 1 . 2 Ballistic Gun 11 | 1 1 . 1 . 2 . . . 1 . . . . . . . . . . . . . . . . 1 . . 1 3 Ballistic Cannon 14 | . 4 1 . 1 . . . . . . . 1 1 2 . . . 1 2 . . . . . 1 . . . . . Launcher 9 | . . 1 1 1 . . . . . . 2 . 1 . . . . 1 2 . . . . . . . . . . . Special Weapon 28 | . . . 1 . . 1 . . 1 1 2 1 . 2 1 . 3 2 1 1 1 . 1 1 3 1 3 . . 1 Impact Weapon 5 | . 1 . . 2 . 1 . . . . . . 1 . . . . . . . . . . . . . . . . . Slashing Weapon 2 | . . . . . 1 . . . . . . . . . . . . . 1 . . . . . . . . . . . Piercing Weapon 1 | . . . . . . . . . . . . . . . . 1 . . . . . . . . . . . . . . Special Melee Weapon 2 | . . . . . 1 . . . . . 1 . . . . . . . . . . . . . . . . . . . Unidentified Prototypes 17 | . . . 2 . 1 . . . . . . . . . . 3 . 2 4 . 1 . . . 2 . 1 . 1 . Corrupted Parts 1 | . . . . . . . . . . . . . . . . 1 . . . . . . . . . . . . . . System Corruption 3 | . . . . . . . . . . . . . . . . 3 . . . . . . . . . . . . . . Parts Lost 67 | . . 1 1 4 1 2 . . . . . 1 4 5 1 4 1 . . 1 2 . . 1 8 . . 1 3 26 Power 5 | . . . . . . . . . . . . . . . . . . . . 1 . . . . 1 . . . . 3 Propulsion 15 | . . 1 1 1 . 1 . . . . . . 2 2 . 1 . . . . . . . . . . . . . 6 Utility 29 | . . . . 3 1 1 . . . . . 1 1 1 1 2 . . . . 1 . . 1 4 . . 1 3 8 Weapon 18 | . . . . . . . . . . . . . 1 2 . 1 1 . . . 1 . . . 3 . . . . 9 Highest Loss Streak 21 | . . 1 1 2 1 2 . . . . . 1 2 3 1 1 1 . . 1 1 . . 1 6 . . 1 3 21 To Critical Strikes 1 | . . . . . . . . . . . . . . . . . 1 . . . . . . . . . . . . . Average Backups 21 | 4 10 14 22 22 24 24 24 24 24 23 23 22 23 22 23 24 22 23 22 22 20 21 21 22 21 21 20 21 21 18 Power . | . 1 . . . 1 1 1 1 1 . . . . . . . . . . . 1 2 1 . . . . . . . Propulsion 2 | 2 2 2 3 5 4 6 5 5 5 3 3 2 . 1 1 1 1 1 1 . 1 2 1 . . 1 1 2 2 1 Utility 11 | . 1 4 9 8 12 9 9 9 8 8 11 10 13 11 13 14 13 13 13 12 10 10 12 13 15 14 14 15 14 9 Weapon 5 | . 6 6 7 6 5 5 4 5 6 8 7 7 7 5 5 5 5 4 5 4 4 5 5 4 3 3 3 3 3 5 Tool/Special . | . . . . . . . . . . . . . . . . . . . . . . . . . . . . . . . Unused Backups 83 | . 2 5 7 7 . 5 . 1 3 2 3 . 4 5 1 7 3 4 1 6 . . . 6 1 2 1 4 . 3 Power 12 | . . . 2 . . . . . . . 1 . 2 . 1 1 1 1 . 2 . . . . . . . 1 . . Propulsion 10 | . 2 1 1 1 . 1 . 1 . . . . . . . 2 . . . . . . . . . . . . . 1 Utility 41 | . . 1 2 6 . 3 . . . 2 1 . 2 4 . 4 2 1 . 3 . . . 4 1 1 . 2 . 2 Weapon 17 | . . 3 2 . . 1 . . 2 . 1 . . 1 . . . 2 1 1 . . . 1 . 1 1 . . . Tool/Special 3 | . . . . . . . . . 1 . . . . . . . . . . . . . . 1 . . . 1 . . Average Slot Usage (%) 90 | . 99 99 99 94 99 99 91 92 83 89 91 92 93 87 92 90 87 87 88 88 87 89 85 84 82 80 81 79 81 78 Engine 2 | . 14 14 4 . . . . . . . . . 1 . . . . . . . . . . . . . . . . . Core 2 | . . . 4 7 9 9 7 7 7 7 7 7 . . 6 1 . . . . . . . . . . . . . . Reactor 4 | . . . . . . . . . . . . . 3 5 . 4 5 5 9 9 10 10 9 9 12 13 12 12 12 10 Treads 13 | . 28 24 18 12 11 15 7 7 7 7 7 7 12 11 19 17 11 10 10 10 10 10 14 14 13 13 12 12 12 11 Wheel 5 | . . 3 17 22 24 20 15 15 7 12 15 15 7 3 . . . . . . . . . . . . . . . . Device 5 | . 14 12 11 7 6 6 5 3 . . . . . . . . 1 6 . 1 2 5 4 9 10 7 5 10 9 13 Storage 6 | . 14 13 8 7 9 9 7 7 7 7 7 7 6 6 6 6 5 5 5 5 5 5 4 4 4 4 4 4 4 3 Hackware 23 | . . . . 1 7 11 17 30 27 23 29 34 33 25 34 27 37 33 41 38 36 36 33 26 26 26 30 25 30 23 Protection 6 | . . . 9 14 12 9 13 3 8 13 7 2 5 12 4 10 6 5 4 6 6 5 4 4 3 4 3 4 2 3 Energy Gun 2 | . 5 12 4 1 . . . . 3 2 . . 6 1 4 2 4 2 . . . . . . . . . . . . Energy Cannon 3 | . . 9 5 7 11 . . 5 1 . . . 1 1 . 1 2 . 4 4 3 5 4 4 2 3 3 3 3 3 Ballistic Gun 1 | . 4 . 7 3 3 4 4 1 3 . . . . . . . . . . . . . . . . 2 . . . 5 Ballistic Cannon 1 | . 15 5 . 2 . . . . . . . . . 3 . 5 . . . . . . . . . 1 3 3 4 1 Special Weapon 3 | . . . . . . 6 3 7 4 5 6 5 3 4 6 4 4 7 5 4 5 5 4 3 3 3 7 4 4 2 Impact Weapon 1 | . 2 . . 2 . 6 5 . 2 5 6 7 6 4 6 4 . . . . . . . . . . . . . . Peak Build Rating 213 | 8 10 15 59 63 40 40 51 49 58 60 61 60 69 76 72 95 106 124 136 139 137 135 154 165 186 185 196 205 204 213 Average Rating 90 | 4 8 11 30 43 36 36 47 48 56 57 57 55 63 71 68 84 101 111 129 133 131 135 152 159 169 179 188 201 195 185 On Entrance 91 | . 8 8 14 59 35 39 38 48 49 58 59 58 51 55 69 68 95 97 117 133 138 135 135 154 160 181 183 187 204 196 Naked Turns . | . . . . . . . . . . . . . . . . . . . . . . . . . . . . . . . Heaviest Build 218 | 14 32 98 145 149 113 109 103 98 105 105 109 107 119 126 106 120 125 124 151 158 152 146 167 167 200 200 210 218 218 213 Greatest Support 240 | 40 40 40 63 80 80 36 40 40 70 28 24 24 40 115 125 150 150 155 155 155 150 150 230 230 240 240 240 240 240 230 Greatest Overweight (x) 9 | . . 9 9 4 4 4 4 2 3 4 4 4 9 4 . 1 . . . 1 1 . . . . . 1 . . 1 Average Overweight (x) 1 | . . 1 4 3 2 3 2 2 2 3 3 3 3 2 . . . . . . . . . . . . . . . . Largest Inventory Capacity 25 | 8 15 25 25 25 25 25 25 25 25 25 25 25 25 25 25 25 25 25 25 25 25 25 25 25 25 25 25 25 25 25 Average Capacity 23 | 6 14 17 25 25 25 25 25 25 25 25 25 25 25 25 25 25 25 25 25 25 25 25 25 25 25 25 25 25 25 23 Most Carried 25 | 8 15 18 25 25 25 25 25 25 25 25 25 25 25 25 25 25 25 25 25 25 25 25 25 25 25 25 25 25 25 25 Average Carried 22 | 4 11 15 24 22 24 24 24 24 24 24 24 23 23 22 23 24 23 24 24 24 23 25 24 24 24 24 24 24 24 21 Final Capacity 25 | 8 15 25 25 25 25 25 25 25 25 25 25 25 25 25 25 25 25 25 25 25 25 25 25 25 25 25 25 25 25 5 Final Carried 25 | 8 15 18 19 25 23 25 25 25 24 25 24 25 21 25 22 25 20 25 25 25 25 25 25 25 25 25 24 25 25 5 Class Distribution -------------------- 35% | Botlord-Mutant 19% | Botlord-Tank 17% | Bothacker-Mutant 12% | Mutant 8% | Scavenger-Mutant 4% | Commander-Mutant Dominant Class ---------------- Mutant | -10/Materials Scavenger-Mutant | -10/Subcaves Mutant | -8/Materials Mutant | -8/Garrison Mutant | -8/Materials Commander-Mutant | -8/Garrison Bothacker-Mutant | -7/Factory Bothacker-Mutant | -7/Waste Bothacker-Mutant | -7/Factory Bothacker-Mutant | -7/Garrison Bothacker-Mutant | -7/Factory Commander-Mutant | -7/Garrison Botlord-Mutant | -6/Factory Bothacker-Mutant | -6/Garrison Botlord-Mutant | -6/Factory Botlord-Mutant | -6/Garrison Botlord-Mutant | -5/Factory Botlord-Mutant | -5/Garrison Botlord-Mutant | -4/Factory Botlord-Mutant | -4/Garrison Botlord-Mutant | -4/Armory Botlord-Mutant | -4/Lab Botlord-Mutant | -3/Research Botlord-Mutant | -3/Garrison Botlord-Mutant | -2/Research Botlord-Tank | -2/Garrison Botlord-Tank | -1/Access Botlord-Tank | -1/Garrison Botlord-Tank | -1/Access Botlord-Tank | -1/Command Resources | -11 -10 -10 -8 -8 -8 -8 -7 -7 -7 -7 -7 -7 -6 -6 -6 -6 -5 -5 -4 -4 -4 -4 -3 -3 -2 -2 -1 -1 -1 -1 ----------- Run | Yrd Mat Sub Mat Gar Mat Gar Fac Was Fac Gar Fac Gar Fac Gar Fac Gar Fac Gar Fac Gar Arm Lab Res Gar Res Gar Acc Gar Acc Com Matter Collected 24442 | 206 523 599 893 799 687 847 60 246 827 419 805 615 1068 670 530 1406 1111 834 1230 868 1328 . 110 793 1655 479 761 1228 460 2385 Remotely 129 | . . . . . . . . . . . 129 . . . . . . . . . . . . . . . . . . . Salvage Created 16666 | 28 477 426 878 995 935 680 214 235 651 399 108 383 1502 460 232 816 560 152 242 514 1134 . 107 920 1091 129 273 353 54 1718 Parts 779 | 6 23 42 53 55 44 40 4 5 36 9 1 24 25 19 10 28 27 8 10 20 32 . 8 61 44 5 22 28 4 86 Haulers Intercepted 8 | . 2 . 2 . 1 . . . 1 . . . . . 1 . . . 1 . . . . . . . . . . . Recyclers Shooed 17 | . 2 . . . . . 2 . . . . . 1 . . . 4 . . . . . . . 1 . 3 . . 4 Parts Field Recycled 1 | . . . . . . . . . . . 1 . . . . . . . . . . . . . . . . . . . Retrieved Matter 10 | . . . . . . . . . . . 10 . . . . . . . . . . . . . . . . . . . Parts Self-Destructed 16 | . . 16 . . . . . . . . . . . . . . . . . . . . . . . . . . . . Prevented . | . . . . . . . . . . . . . . . . . . . . . . . . . . . . . . . Kills | -11 -10 -10 -8 -8 -8 -8 -7 -7 -7 -7 -7 -7 -6 -6 -6 -6 -5 -5 -4 -4 -4 -4 -3 -3 -2 -2 -1 -1 -1 -1 ------- Run | Yrd Mat Sub Mat Gar Mat Gar Fac Was Fac Gar Fac Gar Fac Gar Fac Gar Fac Gar Fac Gar Arm Lab Res Gar Res Gar Acc Gar Acc Com Combat Hostiles Destroyed 296 | . 11 15 15 29 14 14 3 1 16 7 1 11 17 13 3 14 10 5 1 7 17 . 2 22 17 2 5 6 1 17 Melee 6 | . . . . . . . . . . . . 1 1 . . . . . 1 . 1 . . 1 . . 1 . . . Guns 82 | . 5 3 14 8 2 8 . . 10 4 . 1 11 1 1 1 2 1 . . . . . . . . . . . 10 Cannons 137 | . 6 9 . 13 11 . 1 1 . . . 2 1 9 . 12 7 1 . 3 14 . 2 9 17 2 4 5 1 7 AOE 47 | . . 3 . 8 . 6 . . 5 . . 6 1 2 . 1 1 3 . . 1 . . 10 . . . . . . Classes Destroyed 22 | 1 6 3 1 3 1 . . 1 . . . 1 2 . . . . . . 1 2 . . . . . . . . . Worker 13 | . . . 2 . . . . . . . . . 1 . . . 2 . 2 . . . . . 2 . . . . 4 Builder 8 | . . . . . . . . . . . . . 1 . . . 1 . . . . . . . 4 . 1 . 1 . Tunneler 2 | 1 . . . . . . . . . . . . 1 . . . . . . . . . . . . . . . . . Hauler 8 | . 2 . 2 . 1 . . . 1 . . . . . 1 . . . 1 . . . . . . . . . . . Recycler 17 | . 1 . 1 . 1 . 1 . . . 1 . 4 . . . 1 . 1 . . . . . 1 . . . . 5 Mechanic 1 | . . . . . . . . . . . . . . . . . . . . . 1 . . . . . . . . . Operator 3 | . 2 . . . 1 . . . . . . . . . . . . . . . . . . . . . . . . . Watcher 7 | . 1 . 2 1 2 . . . . . . . . . . . . . . . 1 . . . . . . . . . Swarmer 60 | . 6 5 4 8 . 1 . . 7 1 . 5 . . 1 . 3 4 1 . . . . 11 1 . . 1 . 1 Cutter 6 | . . . . . . . . . . . . 2 . 2 . . . . . . . . . . . 1 . 1 . . Grunt 86 | . 5 2 7 6 8 3 2 . 4 4 . . 8 5 . 9 3 . . 4 6 . 1 2 6 1 . . . . Brawler 14 | . . . . 4 . 1 . . . 3 . 1 3 . . . . . . . . . . 1 1 . . . . . Duelist 4 | . . . . . . . . . . . . . . . . . . . . . 4 . . . . . . . . . Sentry 37 | . . 1 4 6 5 7 . . 4 . . . 1 6 1 2 . . . . . . . . . . . . . . Demolisher 1 | . . . . . . . . . . . . . . . . . . . . 1 . . . . . . . . . . Specialist 3 | . . . . 1 . . . . . . . 2 . . . . . . . . . . . . . . . . . . Hunter 8 | . . . . . 1 . . . . . . . 1 . . . . . . 1 1 . . 2 2 . . . . . Programmer 65 | . . . . 4 . 2 1 . 1 . . 1 3 . 1 4 4 1 . . 7 . 1 6 7 . 5 4 1 12 Behemoth 3 | . . . . . . . . . . . . . 1 . . . . . . 1 . . . . . . . . . 1 Compactor 1 | . . . . . . . . 1 . . . . . . . . . . . . . . . . . . . . . . M Guard 1 | . . . . . . . . . . . . . . . . . . . . . . . . . . . . . . 1 Combat Programmer 2 | . . . . . . . . . . . . . . . . . . . . . . . . . . . . . . 2 Artisan 1 | . . 1 . . . . . . . . . . . . . . . . . . . . . . . . . . . . Subdweller 7 | . . 7 . . . . . . . . . . . . . . . . . . . . . . . . . . . . Infiltrator 1 | . . . . . . . . . . . 1 . . . . . . . . . . . . . . . . . . . Best Kill Streak 10 | 1 3 3 5 6 4 7 3 1 5 2 1 6 5 3 1 3 4 3 3 2 3 . 1 9 10 1 1 2 1 4 Combat Bots Only 9 | . 3 3 4 6 3 7 2 1 5 2 1 6 2 3 1 3 2 3 1 2 3 . 1 9 7 1 1 2 1 3 Max Kills in Single Turn 5 | 1 1 3 1 3 1 3 1 1 5 1 1 4 1 1 1 1 1 3 3 1 1 . 1 3 2 1 1 1 1 2 Gunslinging 1 | . . . . . . . . . . . . . . . . . . . . . . . . . . . . . . 1 Exploded 5 | . . 3 . 3 . 3 . . 5 . . 4 1 1 . 1 1 3 . . 1 . . 3 . . . . . . Melee 1 | . . . . . . . . . . . . 1 1 . . . . . 1 . 1 . . 1 . . 1 . . . Uniques/NPCs Destroyed . | . . . . . . . . . . . . . . . . . . . . . . . . . . . . . . . Combat | -11 -10 -10 -8 -8 -8 -8 -7 -7 -7 -7 -7 -7 -6 -6 -6 -6 -5 -5 -4 -4 -4 -4 -3 -3 -2 -2 -1 -1 -1 -1 -------- Run | Yrd Mat Sub Mat Gar Mat Gar Fac Was Fac Gar Fac Gar Fac Gar Fac Gar Fac Gar Fac Gar Arm Lab Res Gar Res Gar Acc Gar Acc Com Hostile Shots Fired 2379 | . 38 36 61 130 65 69 10 . 93 36 54 49 174 225 21 110 111 28 52 58 155 . . 102 222 23 19 63 51 324 Missed 741 | . 15 9 16 41 12 17 5 . 26 14 25 14 71 112 10 32 30 13 19 16 45 . . 36 45 10 8 23 14 63 Intercepted 22 | . . . . . . . . . . . . . . . . . . . . . . . . . . . . 1 . 21 Hits 1638 | . 23 27 45 89 53 52 5 . 67 22 29 35 103 113 11 78 81 15 33 42 110 . . 66 177 13 11 40 37 261 Melee 15 | . . . . 3 . 1 . . . . . . 1 . . 1 . . . . 3 . . . 1 3 . 1 1 . Projectile 1623 | . 23 27 45 86 53 51 5 . 67 22 29 35 102 113 11 77 81 15 33 42 107 . . 66 176 10 11 39 36 261 AOE 29 | . . . . . . . . . . . . 1 1 1 . . . . 2 1 . . 2 . . 2 . 3 1 15 Critical Strikes 86 | . . . 2 8 1 4 . . . . . 1 3 . 1 5 4 . 2 3 8 . . 3 5 3 . 4 3 26 Actively Blocked 3 | . . . . . . . . . . . . . . . . 1 . . . . . . . . . . . . . 2 Part Disruptions 8 | . . . . . . . . . . . . . . . . . 1 . . . . . . 1 2 . 1 . . 3 Damage Taken 32054 | . 218 393 621 1457 897 787 74 . 819 309 480 587 1908 1052 302 1512 1986 420 1043 880 1800 . 30 1193 3039 362 312 798 874 7901 Core 2943 | . 70 47 62 80 32 100 13 . 175 81 94 40 230 51 47 161 254 40 99 57 160 . 5 23 125 . . 44 . 853 Absorbed by Shields 4854 | . . . . . . . . . . . . . 4 . . . 40 92 17 101 886 . 20 134 912 153 46 770 162 1517 Reduced by Siege Mode 870 | . . . . . . . . . . . . . . . . . . . . 9 18 . . . . . . . . 843 Redirected to Shielding 187 | . . 7 . . . . . . 10 . . 8 . 7 . 14 . 3 13 9 15 . . 13 10 . . . . 78 Ignored by Resistances 23 | . . . . . . . . . . . . . . . . . . . . . . . . . . . . . . 23 Regen/Repaired (Parts) 4520 | . . . 94 . 162 158 52 . 195 . 22 100 588 . 367 246 1294 . 105 . 524 . . . . . 436 48 . 129 Core Remaining (%) 66 | 100 . 53 . . . 50 . . . . . 42 . . . 42 . 70 . . . 72 . 97 . 91 . . . 43 Volleys Fired 1874 | 1 49 34 60 62 45 46 12 49 52 40 29 69 99 74 29 105 112 39 57 71 160 . 6 59 122 42 44 108 42 157 Largest 4 | 2 2 2 2 3 2 2 2 1 2 2 1 1 2 3 2 3 3 2 2 1 1 . 1 2 1 2 3 2 2 4 Hottest 330 | 70 80 140 140 159 136 53 98 68 98 40 81 81 81 86 81 110 151 53 178 120 120 . 120 240 120 155 246 188 188 330 Shots Fired 2539 | 2 98 48 116 142 93 69 15 47 76 47 30 68 147 96 31 173 147 42 62 71 161 . 6 67 120 45 54 123 47 296 Gun 722 | 2 48 7 105 68 12 48 3 1 45 30 1 13 97 18 1 27 28 6 . . . . . . . 3 . . 1 158 Cannon 1083 | . 50 40 10 69 81 . 3 37 7 . 1 15 2 52 7 111 57 3 12 33 107 . 3 47 89 23 34 60 30 100 Launcher 28 | . . 1 1 5 . 3 . . 1 . 2 2 . 4 . . . 1 2 . 1 . . 5 . . . . . . Special 706 | . . . . . . 18 9 9 23 17 26 38 48 22 23 35 62 32 48 38 53 . 3 15 31 19 20 63 16 38 Kinetic 746 | 1 69 25 49 57 12 50 3 1 25 . . 7 . 25 2 85 17 3 4 13 28 . . . 47 3 10 15 6 189 Thermal 970 | 1 29 23 66 80 81 . 3 37 27 30 1 13 97 18 1 46 68 6 6 4 76 . 3 28 40 23 24 45 25 69 Explosive 25 | . . . 1 5 . 1 . . 1 . 2 2 . 4 . . . 1 2 . 1 . . 5 . . . . . . Electromagnetic 92 | . . . . . . . . . . . 1 8 2 27 5 7 . . 2 16 3 . . 19 2 . . . . . Robot Hit Streak 47 | 1 9 13 17 23 14 20 11 11 9 11 6 9 16 12 5 21 15 12 16 16 18 . 7 10 8 8 6 8 12 47 Robot Miss Streak 8 | . 8 3 5 4 3 2 3 2 3 2 2 4 3 3 2 4 6 2 2 2 4 . . 3 3 2 6 7 4 4 Penetration Max 1 | . . . . . . 1 . . 1 . . 1 . . . . . . . . . . . . . . . . . 1 Secondary Targets 9 | . . . . . . 1 . . 3 1 . . 1 . . . . . . . . . . . . . . . . 3 Max Gunslinging Chain 1 | . . . . . . 1 . . 1 1 . . 1 . . . . . . . . . . . . . . . . 1 Shots Hit Robots 1718 | 1 52 30 68 78 91 61 15 35 52 35 23 52 125 67 24 116 91 34 45 51 104 . 6 43 78 17 22 60 23 219 Core Hits 595 | 1 22 19 29 40 27 26 2 11 24 12 3 19 34 25 2 36 19 15 6 11 26 . 2 26 20 2 5 4 2 125 Critical Kills 12 | . . . 2 2 1 2 . . . . . 1 1 . . . . . . . 1 . . 1 . . . . . 1 Critical Parts Destroyed 20 | . . . 1 3 . . 1 . 1 . 1 2 1 1 1 . . . . . . . . . . . . . . 8 Critical Strikes 73 | . 2 . 3 8 1 3 1 . 1 2 2 5 6 5 2 2 3 2 . . 4 . . 2 4 . 2 . . 13 Burn 15 | . 1 . . 3 . . . . . 2 . 2 4 1 . 1 . 1 . . . . . . . . . . . . Meltdown 3 | . . . 1 . . . . . . . . . . . . . . . . . 1 . . 1 . . . . . . Destroy 26 | . . . 2 5 1 2 . . 1 . . 3 . . . . . . . . . . . . . . . . . 12 Blast 18 | . 1 . . . . . . . . . . . . 3 . 1 3 1 . . 2 . . . 4 . 2 . . 1 Corrupt 2 | . . . . . . . . . . . 1 . . . 1 . . . . . . . . . . . . . . . Smash 6 | . . . . . . . 1 . . . 1 . 2 1 1 . . . . . . . . . . . . . . . Sever 3 | . . . . . . 1 . . . . . . . . . . . . . . 1 . . 1 . . . . . . Melee Attacks 594 | . 6 25 3 50 28 38 17 . 11 69 18 27 43 21 20 26 27 48 31 14 36 . 2 17 17 . . . . . Impact 358 | . 6 25 3 50 1 21 17 . 11 69 18 27 43 21 20 26 . . . . . . . . . . . . . . Slashing 106 | . . . . . 3 11 . . . . . . . . . . . . 6 14 36 . 2 17 17 . . . . . Piercing 100 | . . . . . . . . . . . . . . . . . 27 48 25 . . . . . . . . . . . Sneak Attacks 42 | . 1 1 1 . 14 6 1 . 1 1 1 . 10 . . . . . 2 . 2 . . . 1 . . . . . Combat Hostiles 9 | . . . . . . . . . . 1 . . 4 . . . . . 2 . 2 . . . . . . . . . Follow-up Attacks . | . . . . . . . . . . . . . . . . . . . . . . . . . . . . . . . Damage Inflicted 47603 | 13 883 745 1639 2355 1491 1503 428 657 1452 686 215 935 2971 2173 302 3358 1543 914 596 1510 3894 . 150 2845 4153 133 983 969 646 7461 Guns 12894 | 13 390 148 1417 791 170 829 . 22 680 473 . 258 1575 249 23 420 376 90 . . . . . . . . . . 17 4953 Cannons 24713 | . 356 491 172 929 1230 . 52 635 101 . 28 211 35 1291 88 2881 1050 135 285 1396 3017 . 150 1363 3935 133 808 969 576 2396 Explosions 6055 | . . 106 . 635 . 488 . . 521 . 76 403 463 592 . 57 . 689 123 114 446 . . 1342 . . . . . . Melee 3408 | . 68 . 50 . 91 186 376 . 150 213 111 63 898 41 191 . 48 . 188 . 431 . . 140 163 . . . . . Ramming 533 | . 69 . . . . . . . . . . . . . . . 69 . . . . . . . 55 . 175 . 53 112 Kinetic 19323 | . 515 296 755 540 170 1269 . 22 468 . . 89 . 650 . 2105 517 135 60 833 906 . . . 2558 . 514 530 300 6091 Thermal 17760 | 13 231 449 834 1180 1230 . 52 635 656 473 . 258 1575 249 23 1103 909 90 190 249 2494 . 150 957 1343 133 294 439 293 1258 Explosive 4469 | . . . . 635 . 48 . . 178 . 76 403 463 592 . . . 689 123 . . . . 1262 . . . . . . Electromagnetic 2110 | . . . . . . . . . . . 28 122 35 641 88 150 . . 35 428 63 . . 486 34 . . . . . Impact 2161 | . 68 . 50 . . . 376 . 150 213 111 63 898 41 191 . . . . . . . . . . . . . . . Slashing 1011 | . . . . . 91 186 . . . . . . . . . . . . . . 431 . . 140 163 . . . . . Piercing 236 | . . . . . . . . . . . . . . . . . 48 . 188 . . . . . . . . . . . Highest Corruption 43 | . . . . 6 7 8 . 21 22 17 17 18 1 1 2 6 8 9 1 . 8 8 5 10 20 20 2 4 5 43 Average Corruption 8 | . . . . 4 6 7 . 13 20 17 16 17 1 1 1 2 5 8 1 . 7 8 5 8 8 20 2 3 4 11 Corruption Purged 7 | . . . . . . . . . 5 . 1 . . . . . . . 1 . . . . . . . . . . . Corruption Blocked . | . . . . . . . . . . . . . . . . . . . . . . . . . . . . . . . Effects 1087 | . . . . 42 48 59 . 14 91 60 92 58 4 12 18 40 55 63 10 . 54 2 3 45 65 62 17 38 22 113 Message Errors 238 | . . . . 12 16 13 . 3 23 19 25 7 1 3 4 13 10 16 2 . 8 1 . 6 11 13 1 11 1 19 Matter Fused 265 | . . . . 8 12 15 . 4 22 13 22 12 1 4 5 9 15 12 3 . 14 1 2 9 14 21 3 13 7 24 Heat Flow Errors 130 | . . . . 9 4 10 . . 6 6 12 11 . . 1 4 8 10 . . 9 . 1 5 12 4 5 2 3 8 Energy Discharges 130 | . . . . 3 4 5 . . 12 4 6 8 1 3 5 4 7 7 2 . 11 . . 7 7 4 2 5 3 20 Parts Rejected 15 | . . . . . . 1 . 1 1 1 . 2 . . . . 3 . . . 1 . . . 2 . 1 . . 2 Parts Fused 21 | . . . . 1 1 1 . . 1 1 2 1 . 1 . . 1 2 1 . 2 . . 2 1 1 1 1 . . Data Loss (minor) 132 | . . . . 4 7 9 . 2 13 6 12 7 . 1 . 5 4 11 1 . 4 . . 6 7 10 1 3 6 13 Data Loss (major) 47 | . . . . 1 . 2 . . 3 4 9 6 1 . 1 2 3 2 . . 1 . . 2 3 1 1 2 . 3 Misfires 28 | . . . . 2 3 . . . 2 1 1 . . . 1 1 2 . 1 . 2 . . 3 1 2 2 1 1 2 Alerts 32 | . . . . . 1 1 . 1 3 3 3 3 . . 1 1 . 3 . . 1 . . 3 2 4 . . 1 1 Misdirections 10 | . . . . . . . . 1 . 1 . . . . . . . . . . . . . 1 2 1 . . . 4 Weapon Failures 39 | . . . . 2 . 2 . 2 5 1 . 1 . . . 1 2 . . . 1 . . 1 3 1 . . . 17 Overload Shots . | . . . . . . . . . . . . . . . . . . . . . . . . . . . . . . . Overflow Damage 3080 | . 41 . 37 44 . . 143 . 55 113 81 18 484 97 126 58 31 38 109 . 320 . . 146 482 . 246 164 17 230 Projectiles 1507 | . 3 . 7 22 . . . . . . . . . 6 . 58 13 38 36 . 277 . . 63 374 . 231 164 . 215 Explosions 254 | . . . . 22 . . . . 54 . . . 47 50 . . . . . . . . . 81 . . . . . . Melee 1319 | . 38 . 30 . . . 143 . 1 113 81 18 437 41 126 . 18 . 73 . 43 . . 2 108 . 15 . 17 15 Knockbacks 66 | . 3 3 . 1 . . 1 . . 4 . 1 2 1 . 12 3 1 . 3 3 . . . 19 . 4 4 . 1 Impact 9 | . . . . . . . 1 . . 3 . . 2 . . . 1 . . . . . . . 1 . 1 . . . Kinetic 48 | . 3 3 . 1 . . . . . . . 1 . 1 . 11 2 1 . 3 3 . . . 12 . 3 3 . 1 Secondary 9 | . . . . . . . . . . 1 . . . . . 1 . . . . . . . . 6 . . 1 . . Self-Inflicted Damage 481 | . . . . 162 . . . . . . 31 . . 70 . . . 82 . 50 86 . . . . . . . . . Shots 14 | . . . . 4 . . . . . . 1 . . 2 . . . 5 . 1 1 . . . . . . . . . Rammed 30 | . 11 . . . . . . . . . . . . . . . 3 . . . . . . . 3 . 7 . 1 5 Targets Rammed 34 | . 11 . . . . . . . . . . . . . . . 4 . . . . . . . 3 . 8 . 2 6 Kicked . | . . . . . . . . . . . . . . . . . . . . . . . . . . . . . . . Crushed 4 | . . . . . . . . . . . . . . . . . 1 . . . . . . . . . 1 . 1 1 Highest Temperature 610 | 30 180 6 498 258 270 234 . 256 231 258 276 267 52 228 224 241 270 274 222 240 312 . 215 345 425 209 223 322 353 610 Average Temperature 79 | 18 41 2 112 57 51 94 . 100 85 100 88 93 31 51 71 58 89 112 76 78 104 . 100 96 111 65 49 65 132 64 Received Heat Transfer 4104 | . 51 96 297 297 297 171 36 . 198 99 57 30 399 324 72 354 239 21 36 216 218 . . 60 233 51 . 83 12 157 Effects 21 | . . . . . . . . . . . . . . . . . 3 . . . 1 . . 3 6 . . . 2 6 Shutdowns 6 | . . . . . . . . . . . . . . . . . . . . . . . . . 3 . . . 1 2 Energy Bleed 5 | . . . . . . . . . . . . . . . . . 2 . . . 1 . . . . . . . 1 1 Interference 5 | . . . . . . . . . . . . . . . . . 1 . . . . . . 3 1 . . . . . Damage (minor) 1 | . . . . . . . . . . . . . . . . . . . . . . . . . 1 . . . . . Damage (major) 3 | . . . . . . . . . . . . . . . . . . . . . . . . . 1 . . . . 2 Damage (core) 1 | . . . . . . . . . . . . . . . . . . . . . . . . . . . . . . 1 Siege Activations 10 | . . . . . . . . . . . . . . . . 1 . . . 1 2 . . . . . 1 . 1 4 Total Turns 217 | . . . . . . . . . . . . . . . . 1 . . . 13 68 . . . . . 14 . 1 120 Longest Duration 62 | . . . . . . . . . . . . . . . . 1 . . . 13 62 . . . . . 14 . 1 56 Martial Activations . | . . . . . . . . . . . . . . . . . . . . . . . . . . . . . . . Shielding Activations . | . . . . . . . . . . . . . . . . . . . . . . . . . . . . . . . Robots Disrupted . | . . . . . . . . . . . . . . . . . . . . . . . . . . . . . . . Combat Hostiles . | . . . . . . . . . . . . . . . . . . . . . . . . . . . . . . . Robots Corrupted 28 | . 1 . 1 . . . 3 . 1 2 1 1 6 1 3 . . . . 4 . . . 1 2 . 1 . . . Combat Hostiles 17 | . . . . . . . 2 . 1 2 1 1 2 1 2 . . . . 4 . . . 1 . . . . . . Parts Fried 45 | . 2 . . . . . 1 . . 1 1 2 8 1 4 1 . . . 7 2 . . 2 7 1 2 1 . 2 Impact Corruptions 44 | . 2 . 1 . . . 7 . 1 4 2 1 13 2 4 . . . . . . . . . 4 . 1 . 1 1 Robots Melted 7 | . . . 1 . 1 . . . . 1 . . 1 . . . . . . . 1 . . 1 . . . 1 . . Combat Hostiles 7 | . . . 1 . 1 . . . . 1 . . 1 . . . . . . . 1 . . 1 . . . 1 . . Parts Melted 52 | . . . 1 5 7 . . . 2 4 . . 6 . . 4 1 . . . 4 . . 5 5 . 3 4 . 1 Heat Transferred 23226 | 37 740 582 1059 2220 2220 . 74 1147 792 1073 . 629 3219 555 37 1604 1444 222 148 185 1583 . 111 716 999 111 222 333 202 962 Parts Sabotaged . | . . . . . . . . . . . . . . . . . . . . . . . . . . . . . . . Parts Stolen . | . . . . . . . . . . . . . . . . . . . . . . . . . . . . . . . Parts Stripped . | . . . . . . . . . . . . . . . . . . . . . . . . . . . . . . . Power Chain Reactions 4 | . . . . . . . . . . . . . . . . 1 . . . 1 . . . 2 . . . . . . Alert | -11 -10 -10 -8 -8 -8 -8 -7 -7 -7 -7 -7 -7 -6 -6 -6 -6 -5 -5 -4 -4 -4 -4 -3 -3 -2 -2 -1 -1 -1 -1 ------- Run | Yrd Mat Sub Mat Gar Mat Gar Fac Was Fac Gar Fac Gar Fac Gar Fac Gar Fac Gar Fac Gar Arm Lab Res Gar Res Gar Acc Gar Acc Com Maximum Alert Level 4 | . . . 1 4 3 4 3 . 2 3 2 4 3 4 2 4 2 4 2 1 2 . . 3 2 2 3 1 . . Low Security (%) 42 | 100 100 . 86 14 22 9 . 100 88 . . . 14 . 49 . 54 . 86 90 50 . 100 24 58 . 12 44 100 100 Level 1 17 | . . . 13 6 14 8 . . 10 5 48 13 31 . 10 9 37 6 2 9 9 . . 9 27 62 40 55 . . Level 2 23 | . . . . 28 60 46 73 . . 47 51 8 29 37 39 47 8 21 11 . 39 . . 29 14 37 44 . . . Level 3 11 | . . . . 24 2 14 26 . . 47 . 31 24 47 . 33 . 59 . . . . . 35 . . 2 . . . Level 4 4 | . . . . 25 . 21 . . . . . 46 . 14 . 9 . 11 . . . . . . . . . . . . Level 5 . | . . . . . . . . . . . . . . . . . . . . . . . . . . . . . . . High Security . | . . . . . . . . . . . . . . . . . . . . . . . . . . . . . . . Max Security . | . . . . . . . . . . . . . . . . . . . . . . . . . . . . . . . Peak Influence 1545 | 5 85 . 226 1462 712 1256 943 168 421 1038 572 1545 968 1285 674 1259 662 1248 655 238 531 . 72 1055 593 608 725 356 188 160 Initial 810 | . . . 36 1 712 57 659 168 . 293 544 331 810 406 674 177 660 198 655 . 107 . . 24 593 246 364 142 188 . Average 371 | . 26 . 93 745 422 689 669 78 108 679 390 1001 460 867 289 703 195 810 133 124 258 . 14 534 225 396 413 211 39 31 Influence Increases 25364 | 5 419 210 558 1821 691 1429 504 . 985 785 1000 1374 1380 1129 1004 1382 954 1430 628 561 1427 . 150 1221 983 552 1103 832 113 734 Destroy 0b10 Robot/C 10070 | . 220 160 300 800 420 640 160 . 500 280 340 580 640 540 380 560 360 440 160 140 600 . 60 440 420 100 400 160 15 255 Destroy 0b10 Robot/NC 465 | 5 30 . 35 5 30 15 25 . 10 . 40 5 55 . 30 10 30 5 25 . 10 . . . 45 . 10 5 4 36 Destroy Leader 1540 | . 56 20 88 40 126 30 52 . 102 30 90 30 134 40 136 40 62 40 12 . 84 . 10 50 82 . 110 20 . 56 Allied During Kill 3613 | . . . . 73 37 143 40 . 88 34 179 425 230 169 321 110 120 283 117 16 172 . 47 150 167 60 328 118 19 167 Trap Triggered on 0b10 10 | . . . . . . . . . . . . . . . . . . . . . . . . . 10 . . . . . Successful Hack 866 | . 49 . 42 19 10 12 19 . 99 . 40 28 29 16 28 18 84 8 81 16 58 . . 16 58 . 54 6 . 76 Select Force Hacks 30 | . 30 . . . . . . . . . . . . . . . . . . . . . . . . . . . . . Disable Machine 1515 | . . . 15 . 30 15 150 . 150 . 195 . 240 . 75 . 180 . 105 . 195 . 15 . 30 30 30 . 36 24 Anti-Garrison Action 4514 | . . . . 700 . 450 . . . 350 . 250 . 300 . 600 . 550 . 300 . . . 400 . 200 . 414 . . Destroy Structure 2306 | . 4 . 18 154 8 94 58 . 6 76 101 56 52 49 34 44 118 104 128 59 248 . 18 150 141 147 171 109 39 120 Partial Spotted 15 | . . . . . . . . . . . . . . . . . . . . . . . . . 15 . . . . . Lose Combat Pursuer 420 | . 30 30 60 30 30 30 . . 30 15 15 . . 15 . . . . . 30 60 . . 15 15 15 . . . . Influence Decreases 25346 | 5 391 168 626 361 2065 261 1278 482 566 166 1564 303 2344 425 2035 377 1929 466 1876 357 1305 326 118 198 1710 272 1533 696 427 716 Entered New Map 6761 | . . 14 34 1 750 31 597 314 . 126 494 143 735 175 611 77 599 86 593 . 97 326 . 8 462 82 244 36 126 . Time Decay 8011 | 5 391 154 432 . 550 . 286 138 486 . 620 . 704 . 588 . 660 . 540 . 604 . 98 . 638 . 514 . 239 364 Lost Part 486 | . . . 10 40 10 20 . . . . . 10 40 50 10 40 10 . . . 20 . . 10 80 . . 10 10 116 Lost Ally 5933 | . . . . 320 50 210 20 30 80 40 300 150 590 200 256 260 380 380 368 207 434 . 20 180 380 40 250 500 52 236 Purge Threat 4155 | . . . 150 . 705 . 375 . . . 150 . 275 . 570 . 280 . 375 150 150 . . . 150 150 525 150 . . Squads Dispatched 140 | . 3 . 4 . 3 . 4 . 11 . 10 . 13 . 13 . 15 . 14 . 15 . 3 . 12 . 7 . 4 9 Investigation 32 | . 2 . 2 . . . 1 . 4 . 3 . 2 . 1 . 4 . 2 . 6 . . . 2 . 2 . . 1 Extermination 51 | . . . . . . . 1 . 3 . 4 . 4 . 3 . 7 . 5 . 6 . 1 . 5 . 3 . 1 8 Reinforcement 38 | . 1 . 2 . 2 . 2 . 2 . 2 . 4 . 7 . 4 . 2 . 3 . . . 2 . 2 . 3 . Assault 2 | . . . . . 1 . . . . . . . 1 . . . . . . . . . . . . . . . . . Garrison 17 | . . . . . . . . . 2 . 1 . 2 . 2 . . . 5 . . . 2 . 3 . . . . . Intercept . | . . . . . . . . . . . . . . . . . . . . . . . . . . . . . . . Searches Triggered . | . . . . . . . . . . . . . . . . . . . . . . . . . . . . . . . Construction Impeded 4 | . . . 1 . . . 1 . . . . . . . . . . . 1 . . . . . . . 1 . . . Haulers Reinforced 3 | . . . . . . . . . 1 . . . . . 1 . 1 . . . . . . . . . . . . . Active Scanning Responses . | . . . . . . . . . . . . . . . . . . . . . . . . . . . . . . . Cargo Convoy Interrupts 3 | . . . . . . . . . . . . . 1 . 1 . . . 1 . . . . . . . . . . . Alert ID Control Effect 295 | . . . . . . . . . . . . 1 10 . 5 6 55 11 38 19 31 . 6 9 24 9 8 21 24 18 Stealth | -11 -10 -10 -8 -8 -8 -8 -7 -7 -7 -7 -7 -7 -6 -6 -6 -6 -5 -5 -4 -4 -4 -4 -3 -3 -2 -2 -1 -1 -1 -1 --------- Run | Yrd Mat Sub Mat Gar Mat Gar Fac Was Fac Gar Fac Gar Fac Gar Fac Gar Fac Gar Fac Gar Arm Lab Res Gar Res Gar Acc Gar Acc Com Distress Signals 28 | . 2 . 3 . 2 3 1 . . . . . . . 2 . 6 . . 4 1 . . . 2 . 1 . . 1 Communications Jammed 1141 | . . . . . . . . . . . . . . . 17 . 106 . 294 . 250 . 40 . 143 . 150 . 80 61 Distress Signals 1138 | . . . . . . . . . . . . . . . 17 . 106 . 294 . 250 . 40 . 141 . 150 . 79 61 Times Spotted 1113 | . 31 14 25 36 42 34 12 6 30 24 19 31 68 23 28 48 82 43 63 46 86 . 12 40 62 20 31 75 28 54 Peak Tracking Total 11 | . 4 3 4 6 5 11 3 3 5 4 2 6 4 4 5 6 7 6 11 6 6 . 5 5 8 3 5 10 5 5 Tactical Retreats 21 | . 2 1 2 2 1 1 . . 1 1 1 . . 1 . . . . . 2 3 . . 1 1 1 . . . . Traps | -11 -10 -10 -8 -8 -8 -8 -7 -7 -7 -7 -7 -7 -6 -6 -6 -6 -5 -5 -4 -4 -4 -4 -3 -3 -2 -2 -1 -1 -1 -1 ------- Run | Yrd Mat Sub Mat Gar Mat Gar Fac Was Fac Gar Fac Gar Fac Gar Fac Gar Fac Gar Fac Gar Arm Lab Res Gar Res Gar Acc Gar Acc Com Traps Triggered 67 | . 1 1 1 6 1 4 1 . . 11 2 3 7 2 1 3 1 3 . 1 2 . 1 3 1 3 . 4 . 4 Indirectly . | . . . . . . . . . . . . . . . . . . . . . . . . . . . . . . . Trap Hack Attempts . | . . . . . . . . . . . . . . . . . . . . . . . . . . . . . . . Triggered . | . . . . . . . . . . . . . . . . . . . . . . . . . . . . . . . Disarmed 14 | . . . . . 3 . . . 4 . . . 6 . . . . . . . 1 . . . . . . . . . Reprogrammed 6 | . . . . . . . . . . . . . . . . . . . . . . . . . 6 . . . . . Reused 1 | . . . . . . . . . . . . . . . . . . . . . . . . . 1 . . . . . Traps Extracted . | . . . . . . . . . . . . . . . . . . . . . . . . . . . . . . . Installed 1 | . . 1 . . . . . . . . . . . . . . . . . . . . . . . . . . . . Triggered 1 | . . . . . . . . . . . . . . . . . . . . . . . . . 1 . . . . . Most Traps Carried 1 | . . 1 . . . . . . . . . . . . . . . . . . . . . . . . . . . . Machines | -11 -10 -10 -8 -8 -8 -8 -7 -7 -7 -7 -7 -7 -6 -6 -6 -6 -5 -5 -4 -4 -4 -4 -3 -3 -2 -2 -1 -1 -1 -1 ---------- Run | Yrd Mat Sub Mat Gar Mat Gar Fac Was Fac Gar Fac Gar Fac Gar Fac Gar Fac Gar Fac Gar Arm Lab Res Gar Res Gar Acc Gar Acc Com Machines Disabled 158 | . . 1 1 3 2 7 10 . 10 4 13 4 16 3 5 8 12 7 7 4 13 . 1 6 2 6 2 6 3 2 Max in Single Turn 4 | . . 1 1 1 1 1 1 . 4 1 4 1 2 1 1 1 1 1 . 1 1 . . 1 1 1 1 1 1 1 Garrison Access 9 | . . . . . . . . . 1 . 1 . 2 . 1 . 1 . 1 . . . 1 . 1 . . . . . Garrison Relay 50 | . . . . 1 . 5 . . . 4 . 3 . 3 . 6 . 6 . 4 . . . 6 . 4 . 8 . . Phase Generator 1 | . . . . 1 . . . . . . . . . . . . . . . . . . . . . . . . . . Energy Cycler 1 | . . . . . . . . . . . . . . . . . . . . . 1 . . . . . . . . . Machines Repaired . | . . . . . . . . . . . . . . . . . . . . . . . . . . . . . . . Machines Dismantled . | . . . . . . . . . . . . . . . . . . . . . . . . . . . . . . . Machines Sabotaged . | . . . . . . . . . . . . . . . . . . . . . . . . . . . . . . . Overloaded Fab Kills . | . . . . . . . . . . . . . . . . . . . . . . . . . . . . . . . Hacking | -11 -10 -10 -8 -8 -8 -8 -7 -7 -7 -7 -7 -7 -6 -6 -6 -6 -5 -5 -4 -4 -4 -4 -3 -3 -2 -2 -1 -1 -1 -1 --------- Run | Yrd Mat Sub Mat Gar Mat Gar Fac Was Fac Gar Fac Gar Fac Gar Fac Gar Fac Gar Fac Gar Arm Lab Res Gar Res Gar Acc Gar Acc Com Machines Accessed 210 | . 8 2 16 4 8 4 4 . 17 4 12 3 19 2 12 3 25 1 12 4 15 . 3 2 14 1 7 1 . 7 Terminals 125 | . 7 . 11 4 6 4 2 . 10 4 2 3 8 2 5 3 14 1 7 4 7 . . 2 7 1 5 1 . 5 Fabricators 34 | . . . . . . . 1 . 4 . 5 . 5 . 2 . 6 . 2 . 6 . . . 2 . 1 . . . Repair Stations 16 | . . . 1 . 1 . 1 . 1 . 1 . 2 . 2 . 1 . 1 . 2 . . . 1 . . . . 2 Recycling Units 6 | . 1 . 1 . . . . . . . 1 . . . . . 2 . . . . . . . 1 . . . . . Scanalyzers 7 | . . . 2 . . . . . . . 1 . 1 . 1 . . . . . . . 1 . 1 . . . . . Garrison Access 20 | . . . 1 . 1 . . . 2 . 2 . 3 . 2 . 2 . 2 . . . 2 . 2 . 1 . . . Total Hacks 649 | . 27 2 49 7 28 8 9 . 43 8 39 7 59 5 45 7 77 5 46 8 66 . 4 8 44 4 22 3 . 19 Successful 416 | . 14 2 35 2 18 2 5 . 32 2 27 3 43 2 37 3 49 1 26 4 43 . 3 3 34 3 13 1 . 9 Failed 232 | . 12 . 14 5 10 6 4 . 11 6 12 4 16 3 8 4 28 4 20 4 23 . 1 5 10 1 9 2 . 10 Catastrophic 26 | . 1 . 3 1 . 2 . . 3 3 2 2 . . . . 3 . 1 3 1 . 1 . . . . . . . Database Lockouts 1 | . 1 . . . . . . . . . . . . . . . . . . . . . . . . . . . . . Manual 303 | . 24 . 17 1 18 . 6 . 13 1 18 2 18 . 20 . 47 3 27 5 30 . . 6 24 3 4 2 . 14 Terminals 396 | . 25 . 26 7 24 8 6 . 25 8 4 7 26 5 21 7 45 5 34 8 38 . . 8 24 4 15 3 . 13 Fabricators 127 | . . . . . . . 2 . 13 . 19 . 15 . 13 . 21 . 8 . 23 . . . 7 . 6 . . . Repair Stations 45 | . . . 7 . 3 . 1 . 2 . 2 . 5 . 6 . 4 . 1 . 5 . . . 3 . . . . 6 Recycling Units 16 | . 2 . 1 . . . . . . . 6 . . . . . 4 . . . . . . . 3 . . . . . Scanalyzers 34 | . . . 14 . . . . . . . 5 . 8 . 2 . . . . . . . 1 . 4 . . . . . Garrison Access 29 | . . . 1 . 1 . . . 3 . 3 . 5 . 3 . 3 . 3 . . . 3 . 3 . 1 . . . Terminal Hacks 124 | . 5 2 7 2 7 2 1 . 12 2 . 3 10 2 6 3 8 1 11 4 12 . . 3 10 3 3 1 . 4 Part Schematic 2 | . . . . . . . . . 1 . . . . . . . . . . . 1 . . . . . . . . . Robot Schematic 5 | . . . . . . . . . 2 . . . . . . . 1 . 1 . . . . 1 . . . . . . Robot Analysis 6 | . 1 . . . 1 . . . 3 . . . 1 . . . . . . . . . . . . . . . . . Prototype ID Bank 13 | . 1 . 2 . . . . . 1 . . . 2 . . . . . 2 . 2 . . . 2 . . . . 1 Open Door 7 | . . 1 . 1 . 1 . . . 1 . 1 . . . . . . . 1 . . . . . . . . . 1 Branch Access Points 3 | . . . 1 . . . . . . . . . . . . . 1 . 1 . . . . . . . . . . . Emergency Access Points 7 | . . . . . . 1 . . . . . 1 . 1 . 1 . 1 . . . . . . . 1 . 1 . . Machine Index 2 | . . . . . . . . . . . . . . . 1 . . . 1 . . . . . . . . . . . Terminal Index 9 | . 1 . . . 1 . . . 1 . . . 1 . . . 1 . 1 . 1 . . . 1 . 1 . . . Fabricator Index 4 | . . . . . . . . . . . . . . . . . 1 . 1 . . . . . 1 . 1 . . . Repair Station Index 2 | . . . . . . . . . . . . . . . . . . . 1 . . . . . 1 . . . . . Garrison Index 1 | . . . . . . . . . . . . . 1 . . . . . . . . . . . . . . . . . Alert Level 1 | . . . 1 . . . . . . . . . . . . . . . . . . . . . . . . . . . Unreport Threat 10 | . . . 1 . 2 . . . . . . . . . 2 . 1 . . 1 1 . . . . 1 1 . . . Locate Traps 8 | . 2 . . . . . 1 . . . . . 1 . . . . . . . 1 . . . 1 . . . . 2 Disarm Traps 4 | . . . . . 1 . . . 1 . . . 1 . . . . . . . 1 . . . . . . . . . Reprogram Traps 1 | . . . . . . . . . . . . . . . . . . . . . . . . . 1 . . . . . Investigation Status 1 | . . . . . . . . . . . . . . . 1 . . . . . . . . . . . . . . . Recall Investigation 1 | . . . . . . . . . . . . . . . 1 . . . . . . . . . . . . . . . Recall Extermination 1 | . . . . . . . . . 1 . . . . . . . . . . . . . . . . . . . . . Recall Reinforcements 1 | . . . . . . . . . . . . . . . . . . . 1 . . . . . . . . . . . Hauler Manifests 3 | . . . 1 . . . . . . . . . 1 . . . . . 1 . . . . . . . . . . . Registered Components 5 | . . . . . . . . . 1 . . . 1 . . . 1 . . . 1 . . . 1 . . . . . Registered Prototypes 1 | . . . . . . . . . . . . . . . . . . . . . 1 . . . . . . . . . Zone Layout 14 | . . . 1 . 2 . . . 1 . . . 1 . 1 . 2 . 1 . 3 . . . 2 . . . . . Garrison Registry 6 | . . . . . . . . . . . . 1 . 1 . 1 . . . 1 . . . 1 . 1 . . . . Patrol Navigation 4 | . . . . 1 . . . . . 1 . . . . . 1 . . . 1 . . . . . . . . . . Security Stations 1 | . . . . . . . . . . . . . . . . . . . . . . . . 1 . . . . . . Proto ID Catalog 1 | . . 1 . . . . . . . . . . . . . . . . . . . . . . . . . . . . Fabricator Hacks 66 | . . . . . . . . . 6 . 10 . 7 . 9 . 9 . 3 . 14 . . . 2 . 6 . . . Network Status 6 | . . . . . . . . . 1 . 2 . 1 . 1 . . . . . 1 . . . . . . . . . Load Schematic 33 | . . . . . . . . . 3 . 5 . 3 . 4 . 5 . 1 . 8 . . . 1 . 3 . . . Build 27 | . . . . . . . . . 2 . 3 . 3 . 4 . 4 . 2 . 5 . . . 1 . 3 . . . Repair Station Hacks 24 | . . . 6 . 2 . . . 2 . . . 4 . 4 . 2 . . . 4 . . . . . . . . . Scan Component 12 | . . . 3 . 1 . . . 1 . . . 2 . 2 . 1 . . . 2 . . . . . . . . . Repair 12 | . . . 3 . 1 . . . 1 . . . 2 . 2 . 1 . . . 2 . . . . . . . . . Recycling Unit Hacks 4 | . . . 1 . . . . . . . 1 . . . . . 1 . . . . . . . 1 . . . . . Report Inventory 1 | . . . 1 . . . . . . . . . . . . . . . . . . . . . . . . . . . Retrieve Components 3 | . . . . . . . . . . . 1 . . . . . 1 . . . . . . . 1 . . . . . Scanalyzer 27 | . . . 13 . . . . . . . 4 . 7 . 1 . . . . . . . . . 2 . . . . . Insert Component 14 | . . . 6 . . . . . . . 2 . 3 . 1 . . . . . . . . . 2 . . . . . Analyze 13 | . . . 7 . . . . . . . 2 . 4 . . . . . . . . . . . . . . . . . Garrison Access Hacks 29 | . . . 1 . 1 . . . 3 . 3 . 5 . 3 . 3 . 3 . . . 3 . 3 . 1 . . . Unlock Access 11 | . . . 1 . 1 . . . 1 . 1 . 1 . 1 . 1 . 1 . . . 1 . 1 . 1 . . . Seal Access 9 | . . . . . . . . . 1 . 1 . 2 . 1 . 1 . 1 . . . 1 . 1 . . . . . Coupler Status 9 | . . . . . . . . . 1 . 1 . 2 . 1 . 1 . 1 . . . 1 . 1 . . . . . Unauthorized Hacks 142 | . 9 . 7 . 8 . 4 . 9 . 9 . 10 . 14 . 26 . 9 . 13 . . . 16 . 3 . . 5 Terminals 97 | . 8 . 7 . 8 . 3 . 7 . 1 . 6 . 9 . 17 . 8 . 8 . . . 9 . 3 . . 3 Track 7 | . 1 . . . 1 . . . . . . . . . . . 3 . 1 . . . . . . . . . . 1 Assimilate 9 | . . . . . 2 . . . . . . . 1 . 1 . 4 . . . . . . . 1 . . . . . Botnet 19 | . 1 . 1 . 2 . 1 . 2 . 1 . 1 . 2 . 2 . 1 . 2 . . . 1 . 1 . . 1 Operators 13 | . 1 . 1 . 1 . 1 . . . . . 1 . 1 . 2 . 1 . 1 . . . 1 . 1 . . 1 Skim 49 | . 5 . 5 . 2 . 1 . 5 . . . 3 . 5 . 6 . 5 . 5 . . . 6 . 1 . . . Fabricators 26 | . . . . . . . . . 2 . 4 . 3 . 3 . 6 . . . 4 . . . 4 . . . . . Prioritize 4 | . . . . . . . . . . . . . 1 . 1 . 1 . . . . . . . 1 . . . . . Liberate 6 | . . . . . . . . . . . 1 . . . 1 . 2 . . . 1 . . . 1 . . . . . Haulers 6 | . . . . . . . . . 1 . 1 . . . 1 . 2 . . . . . . . 1 . . . . . Recompile 10 | . . . . . . . . . 1 . 2 . 2 . . . 1 . . . 3 . . . 1 . . . . . Repair Stations 11 | . . . . . . . 1 . . . 1 . 1 . 2 . 1 . 1 . 1 . . . 1 . . . . 2 Mechanics 10 | . . . . . . . 1 . . . 1 . 1 . 2 . 1 . 1 . 1 . . . 1 . . . . 1 Patch 1 | . . . . . . . . . . . . . . . . . . . . . . . . . . . . . . 1 Recycling Units 8 | . 1 . . . . . . . . . 3 . . . . . 2 . . . . . . . 2 . . . . . Reject 3 | . . . . . . . . . . . 1 . . . . . 1 . . . . . . . 1 . . . . . Recyclers 1 | . . . . . . . . . . . 1 . . . . . . . . . . . . . . . . . . . Mask 3 | . . . . . . . . . . . 1 . . . . . 1 . . . . . . . 1 . . . . . Tunnel 1 | . 1 . . . . . . . . . . . . . . . . . . . . . . . . . . . . . Scanalyzers . | . . . . . . . . . . . . . . . . . . . . . . . . . . . . . . . Garrison Access . | . . . . . . . . . . . . . . . . . . . . . . . . . . . . . . . Data Cores Recovered 4 | . . . . . 1 . . . . . . . 1 . . . 2 . . . . . . . . . . . . . Used . | . . . . . . . . . . . . . . . . . . . . . . . . . . . . . . . Hacking Detections 173 | . 8 . 12 3 7 4 3 . 16 3 11 3 14 2 11 3 22 1 8 2 12 . 3 1 11 . 6 1 . 6 Full Trace Events 21 | . . . . 2 . 2 1 . 2 1 1 . . 1 1 . 3 1 1 . 3 . . . 1 . 1 . . . Feedback Events . | . . . . . . . . . . . . . . . . . . . . . . . . . . . . . . . Feedback Blocked . | . . . . . . . . . . . . . . . . . . . . . . . . . . . . . . . Robot Schematics Acquired 5 | . . . . . . . . . 2 . . . . . . . 1 . 1 . . . . 1 . . . . . . Robots Built 43 | . . . . . . . . . 4 . 4 . 3 . 7 . 7 . 2 . 9 . . . 2 . 5 . . . Authchips 16 | . . . . . . . . . 1 . 2 . 2 . 3 . 1 . . . 3 . . . 1 . 3 . . . Time 2137 | . . . . . . . . . 134 . 111 . 105 . 259 . 376 . 84 . 792 . . . 102 . 174 . . . Total Robot Build Rating 223 | . . . . . . . . . 16 . 16 . 11 . 27 . 39 . 12 . 51 . . . 16 . 35 . . . Part Schematics Acquired 11 | . . . 5 . . . . . 1 . 2 . 2 . . . . . . . 1 . . . . . . . . . Parts Built 5 | . . . . . . . . . . . 2 . 1 . . . . . 2 . . . . . . . . . . . Authchips . | . . . . . . . . . . . . . . . . . . . . . . . . . . . . . . . Time 251 | . . . . . . . . . . . 95 . 117 . . . . . 39 . . . . . . . . . . . Total Part Build Rating 31 | . . . . . . . . . . . 10 . 7 . . . . . 14 . . . . . . . . . . . Parts Repaired 12 | . . . 3 . 1 . . . 1 . . . 2 . 2 . 1 . . . 2 . . . . . . . . . Time 577 | . . . 114 . 32 . . . 78 . . . 100 . 142 . 19 . . . 92 . . . . . . . . . Parts Recycled . | . . . . . . . . . . . . . . . . . . . . . . . . . . . . . . . Recycled Matter . | . . . . . . . . . . . . . . . . . . . . . . . . . . . . . . . Retrieved Matter . | . . . . . . . . . . . . . . . . . . . . . . . . . . . . . . . Retrieved Components 17 | . . . . . . . . . . . . . . . . . 10 . . . . . . . 7 . . . . . Parts Scanalyzed 9 | . . . 5 . . . . . . . 2 . 2 . . . . . . . . . . . . . . . . . Part Schematics Acquired 9 | . . . 5 . . . . . . . 2 . 2 . . . . . . . . . . . . . . . . . Parts Damaged 2 | . . . 1 . . . . . . . . . 1 . . . . . . . . . . . . . . . . . Bothacking | -11 -10 -10 -8 -8 -8 -8 -7 -7 -7 -7 -7 -7 -6 -6 -6 -6 -5 -5 -4 -4 -4 -4 -3 -3 -2 -2 -1 -1 -1 -1 ------------ Run | Yrd Mat Sub Mat Gar Mat Gar Fac Was Fac Gar Fac Gar Fac Gar Fac Gar Fac Gar Fac Gar Arm Lab Res Gar Res Gar Acc Gar Acc Com Used RIF Installer 12 | . . . . 1 . 1 . . . 1 . 1 . 1 . 1 . 2 . 1 . . . 1 . 1 . 1 . . Coupler Efficiency 1 | . . . . . . . . . . . . . . 1 . . . . . . . . . . . . . . . . Hotswap 1 | . . . . . . . . . . . . . . . . . . . . . . . . 1 . . . . . . Command Fork 2 | . . . . . . . . . . . . . . . . 1 . . . 1 . . . . . . . . . . Threat Obfuscator 1 | . . . . . . . . . . . . . . . . . . . . . . . . . . . . 1 . . Signal Jammer 1 | . . . . . . . . . . 1 . . . . . . . . . . . . . . . . . . . . Watcher Feeds 1 | . . . . . . . . . . . . . . . . . . 1 . . . . . . . . . . . . Patrol Navigation 1 | . . . . . . . . . . . . . . . . . . 1 . . . . . . . . . . . . Alert ID Control 1 | . . . . . . . . . . . . 1 . . . . . . . . . . . . . . . . . . Program Shield 1 | . . . . . . 1 . . . . . . . . . . . . . . . . . . . . . . . . Crosswire 1 | . . . . . . . . . . . . . . . . . . . . . . . . . . 1 . . . . Robots Hacked 358 | . . . . . 13 9 2 6 11 11 14 12 29 . 11 18 36 12 25 19 22 . 3 10 17 7 9 36 9 17 Non-combat 73 | . . . . . 7 2 1 . 7 . 6 2 4 . 6 1 11 . 6 . 3 . 1 . 7 . 2 1 1 5 Combat 285 | . . . . . 6 7 1 6 4 11 8 10 25 . 5 17 25 12 19 19 19 . 2 10 10 7 7 35 8 12 Robot Hacks Applied 404 | . . . . . 20 9 5 6 12 11 15 12 34 . 14 19 41 12 30 20 24 . 3 11 19 7 13 40 9 18 parse_system 17 | . . . . . 1 1 . . 1 . 2 1 1 . 1 2 2 . 2 2 1 . . . . . . . . . ignore_repairs 8 | . . . . . . . . . 2 . 1 . . . . . 1 . 1 . . . . . 3 . . . . . find_fabricator 2 | . . . . . . . . . . . . . . . . . 1 . 1 . . . . . . . . . . . drop_inventory 14 | . . . . . 4 . . . . . . . 1 . 2 . 3 . 1 . . . 1 . 1 . 1 . . . recall_reinforcements 3 | . . . . . . . . . 1 . . . . . 1 . 1 . . . . . . . . . . . . . find_recycling 1 | . . . . . . . . . . . 1 . . . . . . . . . . . . . . . . . . . ignore_parts 6 | . . . . . . . . . . . 1 . . . . . . . . . . . . . 2 . . . . 3 check_alert 1 | . . . . . 1 . . . . . . . . . . . . . . . . . . . . . . . . . purge_threat 21 | . . . . . 4 . 3 . . . 1 . 2 . 2 . 1 . 3 . . . . . 1 . 3 1 . . reprogram_traps 2 | . . . . . . . . . . . . . . . . . 2 . . . . . . . . . . . . . block_reporting 4 | . . . . . . . . . . . . . . . . . . . 1 . 1 . . . 1 . 1 . . . map_route 3 | . . . . . . . . . . . . . . . . . . . . . . . . . . . . . 1 2 ignore_targets 6 | . . . . . . . . 6 . . . . . . . . . . . . . . . . . . . . . . find_garrison 2 | . . . . . 1 . . . . . . . . . . . 1 . . . . . . . . . . . . . reboot_propulsion 1 | . . . . . . . . . . . . . . . . . . . . . . . . . . . . . . 1 scatter_targeting 7 | . . . . . . . 1 . . 1 . 2 1 . . . . 1 . . 1 . . . . . . . . . spike_heat 2 | . . . . . . . . . . . . . . . . . . . . 1 1 . . . . . . . . . overload_power 1 | . . . . . . . . . 1 . . . . . . . . . . . . . . . . . . . . . amplify_resonance 20 | . . . . . . . . . 1 2 . . 2 . . . 4 . 1 2 1 . . . . . 2 3 . 2 reboot_system 28 | . . . . . 2 1 . . 1 1 . 1 3 . 1 2 1 1 2 1 4 . . 2 . . 3 . 2 . overwrite_iff 67 | . . . . . . 1 . . 1 3 . 3 11 . 1 5 7 4 4 4 5 . 1 2 2 1 . 12 . . streamctrl_low 2 | . . . . . . . . . . . . 2 . . . . . . . . . . . . . . . . . . streamctrl_high 16 | . . . . . . . . . . . 1 2 2 . 3 1 3 1 1 . . . . . . . . 2 . . formatsys_low 32 | . . . . . 3 2 1 . 3 . 1 . 3 . 3 1 5 . 3 . 3 . . . 1 . 1 2 . . formatsys_high 138 | . . . . . 4 4 . . 1 4 7 1 8 . . 8 9 5 10 10 7 . 1 7 8 6 2 20 6 10 Relay Couplers Released 224 | . . . . 5 . 20 . . 1 13 3 13 4 11 1 25 1 25 4 16 . . 2 24 3 19 . 34 . . Machine Destruction 221 | . . . . 5 . 20 . . 1 13 3 13 4 11 1 25 1 25 4 16 . . 2 24 3 16 . 34 . . Programmers 3 | . . . . . . . . . . . . . . . . . . . . . . . . . . 3 . . . . Attached 123 | . . . . . 4 3 4 . 1 4 5 5 11 . 3 9 10 6 10 6 6 . . 5 6 6 2 8 5 4 Crosswired 14 | . . . . . . . . . . . . . . . . . . . . . . . . . . 4 . 10 . . Fabnet Peak Effective % . | . . . . . . . . . . . . . . . . . . . . . . . . . . . . . . . Robots Rewired 60 | . . . . 15 . 8 . . . . . 8 . 12 . 1 . 6 . . 7 . . . . 3 . . . . Allies Hacked 35 | . . . . 2 . 1 . . 2 . . 2 1 1 7 . 2 4 1 . 6 . . . 5 . 1 . . . Hacks Repelled 5 | . . . . . . . . . . . . . . . . . . . . . . . . . 2 . 2 1 . . Allies | -11 -10 -10 -8 -8 -8 -8 -7 -7 -7 -7 -7 -7 -6 -6 -6 -6 -5 -5 -4 -4 -4 -4 -3 -3 -2 -2 -1 -1 -1 -1 -------- Run | Yrd Mat Sub Mat Gar Mat Gar Fac Was Fac Gar Fac Gar Fac Gar Fac Gar Fac Gar Fac Gar Arm Lab Res Gar Res Gar Acc Gar Acc Com Total Allies 473 | . . . . 17 8 16 1 . 10 10 21 20 27 12 29 18 39 24 26 21 41 . 3 11 21 16 10 51 7 14 Largest Group 21 | . . . . 8 5 8 5 4 9 5 11 17 16 12 17 9 10 11 13 9 13 9 10 6 12 12 12 21 18 9 Highest-Rated Group 1186 | . . . . 144 77 226 138 74 240 211 289 500 476 288 499 276 433 428 646 469 798 657 708 388 758 804 804 1186 1031 526 Highest-Rated Ally 183 | . . . . 39 29 40 40 25 37 62 62 80 80 32 37 95 142 95 80 56 142 142 142 142 183 148 148 82 89 69 Total Orders 294 | . . . . . 6 14 1 . 8 2 10 28 25 2 4 29 30 14 15 8 17 . . 9 8 9 13 23 3 16 STAY 136 | . . . . . 2 6 . . 2 1 4 9 10 1 . 15 13 9 6 3 8 . . 6 3 5 9 13 1 10 ROAM 8 | . . . . . . . . . . . . . . . 2 1 2 . 1 . 1 . . . 1 . . . . . FOLLOW 90 | . . . . . 2 4 . . 2 1 2 14 3 1 . 8 5 5 5 5 6 . . 3 3 4 2 7 2 6 GUARD 1 | . . . . . . . . . . . 1 . . . . . . . . . . . . . . . . . . . AID 59 | . . . . . 2 4 1 . 4 . 3 5 12 . 2 5 10 . 3 . 2 . . . 1 . 2 3 . . Ally Attacks 3174 | . . . . 84 66 94 17 . 54 56 106 97 194 57 166 138 236 196 249 129 214 . 56 54 169 59 144 208 178 153 Total Damage 92486 | . . . . 1542 728 2010 923 . 965 588 2796 2742 4307 1486 4177 3882 7253 4559 8286 4220 7615 . 2046 1829 5886 2493 4524 6077 6524 5028 Kills 576 | . . . . 11 8 20 10 . 10 7 24 21 31 14 29 22 65 28 49 20 46 . 7 9 31 12 27 28 27 20 Allies Corrupted 29 | . . . . 2 . 2 . . . . . 1 . 1 . . 3 1 2 . 3 . 1 1 5 . 2 1 3 1 Allies Melted 5 | . . . . . . . . . . . . . 2 . 1 1 . . . . . . . . . 1 . . . . Intel | -11 -10 -10 -8 -8 -8 -8 -7 -7 -7 -7 -7 -7 -6 -6 -6 -6 -5 -5 -4 -4 -4 -4 -3 -3 -2 -2 -1 -1 -1 -1 ------- Run | Yrd Mat Sub Mat Gar Mat Gar Fac Was Fac Gar Fac Gar Fac Gar Fac Gar Fac Gar Fac Gar Arm Lab Res Gar Res Gar Acc Gar Acc Com Active Infowar (turns) 8740 | 20 1526 5033 2108 . . . . . . . . . 2 . 51 . . . . . . . . . . . . . . . Optics 51 | . . . . . . . . . . . . . . . 51 . . . . . . . . . . . . . . . A.S.S. 2 | . . . 2 . . . . . . . . . . . . . . . . . . . . . . . . . . . IFF 2 | . . . . . . . . . . . . . 2 . . . . . . . . . . . . . . . . . Terrain 930 | . 36 279 615 . . . . . . . . . . . . . . . . . . . . . . . . . . . Seismic 6947 | 20 1490 4754 683 . . . . . . . . . . . . . . . . . . . . . . . . . . . Machine Analysis 1489 | . . . 1489 . . . . . . . . . . . . . . . . . . . . . . . . . . . Robot Analysis Total 6 | . 1 . . . 1 . . . 3 . . . 1 . . . . . . . . . . . . . . . . . Derelict Logs Recovered 1 | . . 1 . . . . . . . . . . . . . . . . . . . . . . . . . . . . Drone Launches . | . . . . . . . . . . . . . . . . . . . . . . . . . . . . . . . Drone Recoveries . | . . . . . . . . . . . . . . . . . . . . . . . . . . . . . . . Exploration | -11 -10 -10 -8 -8 -8 -8 -7 -7 -7 -7 -7 -7 -6 -6 -6 -6 -5 -5 -4 -4 -4 -4 -3 -3 -2 -2 -1 -1 -1 -1 ------------- Run | Yrd Mat Sub Mat Gar Mat Gar Fac Was Fac Gar Fac Gar Fac Gar Fac Gar Fac Gar Fac Gar Arm Lab Res Gar Res Gar Acc Gar Acc Com Turns Passed 55168 | 109 1526 5397 2308 2427 1597 1793 628 306 2021 1494 2084 1266 3069 1370 2019 2101 3336 1894 1805 1787 2512 38 388 1213 2275 1287 1403 1907 906 2902 Spaces Moved 29208 | 51 748 2727 1168 1254 903 1022 420 137 1222 729 1282 633 1667 648 1078 954 1792 1006 986 1004 1226 23 232 637 1196 728 678 1026 478 1553 Core 105 | 3 . . . . . . . . . . . . . . . . . . . . . . . . . . . . . 102 Treads 17828 | 48 748 2223 2 10 11 . . . 1 . . . . 290 1078 954 1792 1006 986 1004 1226 23 232 637 1196 728 678 1026 478 1451 Legs . | . . . . . . . . . . . . . . . . . . . . . . . . . . . . . . . Wheels 11275 | . . 504 1166 1244 892 1022 420 137 1221 729 1282 633 1667 358 . . . . . . . . . . . . . . . . Hover . | . . . . . . . . . . . . . . . . . . . . . . . . . . . . . . . Flight . | . . . . . . . . . . . . . . . . . . . . . . . . . . . . . . . Fastest Speed 50 | 50 160 150 116 120 120 120 120 125 145 135 135 135 125 145 160 160 160 145 152 145 145 145 150 150 150 160 160 160 158 50 Average Speed 152 | 153 160 169 146 138 128 138 125 125 145 148 144 140 144 159 160 160 160 157 152 149 147 145 150 150 157 160 168 160 159 154 Slowest Speed 249 | 160 160 215 246 249 247 150 150 125 240 150 150 150 225 240 160 240 160 160 152 237 225 145 150 150 160 160 240 160 163 240 Overloaded Moves . | . . . . . . . . . . . . . . . . . . . . . . . . . . . . . . . Propulsion Burnouts . | . . . . . . . . . . . . . . . . . . . . . . . . . . . . . . . Robots Hopped 2 | . . . . . . . . . . . . . . . . . . . . . 2 . . . . . . . . . Potential Cave-ins . | . . . . . . . . . . . . . . . . . . . . . . . . . . . . . . . Cave-ins Triggered . | . . . . . . . . . . . . . . . . . . . . . . . . . . . . . . . Exploration Rate (%) 57 | 4 95 97 96 90 69 91 19 72 33 93 32 71 51 70 30 83 50 91 40 84 78 6 11 66 36 70 19 86 13 45 Regions Visited 30 Branch Regions 4 Pre-discovered Areas 8 | . 2 . . . . . . . 2 . . . . . . . 1 . 1 . . . . . 2 . . . . . Known Exits Taken 15 | . 1 1 1 . 1 . . . 1 . 1 . 1 . 1 . 1 . 1 . 1 1 1 . 1 . 1 . . . Unknown Exits Taken 2 | 1 . . . . . . . . . . . . . . . . . . . . . . . . . . . . 1 . Scrap Searched 8 | . . 8 . . . . . . . . . . . . . . . . . . . . . . . . . . . . Spaces Dug 624 | . 2 17 8 23 2 18 6 . 5 46 31 24 25 56 10 14 39 27 61 10 65 . 1 58 19 8 12 11 5 21 Terrain Destroyed 1072 | . 2 21 14 147 4 54 6 . 6 46 73 24 48 68 10 25 46 37 65 21 127 . 1 76 38 10 25 26 12 40 Melee 308 | . 2 2 1 12 2 10 6 . 5 46 14 12 25 14 10 14 24 27 25 10 26 . 1 6 14 . . . . . Projectile 238 | . . 4 6 . 2 1 . . 1 . . . . 3 . 11 22 . 4 2 45 . . 5 24 10 21 26 12 39 AOE 525 | . . 15 7 135 . 43 . . . . 59 12 23 51 . . . 10 36 9 56 . . 65 . . 4 . . . Terrain Rammed . | . . . . . . . . . . . . . . . . . . . . . . . . . . . . . . . Walls Destroyed . | . . . . . . . . . . . . . . . . . . . . . . . . . . . . . . . Machines Disabled . | . . . . . . . . . . . . . . . . . . . . . . . . . . . . . . . Actions | -11 -10 -10 -8 -8 -8 -8 -7 -7 -7 -7 -7 -7 -6 -6 -6 -6 -5 -5 -4 -4 -4 -4 -3 -3 -2 -2 -1 -1 -1 -1 --------- Run | Yrd Mat Sub Mat Gar Mat Gar Fac Was Fac Gar Fac Gar Fac Gar Fac Gar Fac Gar Fac Gar Arm Lab Res Gar Res Gar Acc Gar Acc Com Total 36878 | 77 956 3396 1628 1728 1214 1266 478 229 1376 978 1461 908 2124 863 1310 1315 2113 1224 1210 1230 1739 28 267 818 1484 827 901 1235 594 1901 Wait 2566 | 10 99 516 245 77 163 41 6 35 18 9 36 95 156 9 131 89 95 30 55 57 224 6 8 22 55 17 95 37 29 101 Move 29183 | 50 747 2726 1168 1253 902 1021 420 136 1222 728 1281 632 1667 647 1078 953 1791 1005 986 1003 1222 22 231 636 1196 727 678 1025 477 1553 Hop 1 | . . . . . . . . . . . . . . . . . . . . . 1 . . . . . . . . . Pick Up 494 | 8 9 26 32 25 9 17 3 3 17 16 18 14 31 24 7 34 18 26 13 16 16 . 7 23 16 11 9 25 10 11 Fast Attach 151 | 6 2 4 8 2 2 2 1 . 1 2 12 2 10 5 7 8 4 10 6 7 11 . . . 15 . 7 2 4 11 Attach 266 | 1 . 3 13 5 6 7 3 1 6 8 9 8 23 14 7 10 17 5 11 10 17 . 2 9 12 6 18 8 8 19 Detach 99 | . 1 1 3 1 1 2 2 . 1 3 3 2 4 9 1 3 3 8 7 6 8 . . 6 3 2 11 4 1 3 Swap 734 | 1 25 37 65 37 45 35 12 2 30 18 22 18 45 19 19 50 30 26 28 20 29 . 5 30 22 12 14 9 11 18 Drop 404 | . 7 21 30 16 7 10 1 3 14 10 24 7 25 15 9 30 10 24 10 21 12 . 6 11 22 5 14 11 10 19 Fire 1874 | 1 49 34 60 62 45 46 12 49 52 40 29 69 99 74 29 105 112 39 57 71 160 . 6 59 122 42 44 108 42 157 Melee 594 | . 6 25 3 50 28 38 17 . 11 69 18 27 43 21 20 26 27 48 31 14 36 . 2 17 17 . . . . . Ram . | . . . . . . . . . . . . . . . . . . . . . . . . . . . . . . . Kick . | . . . . . . . . . . . . . . . . . . . . . . . . . . . . . . . Crush 34 | . 11 . . . . . . . . . . . . . . . 4 . . . . . . . 3 . 8 . 2 6 Escape Stasis 190 | . . . . 32 . 24 . . . 73 8 32 16 . . 4 . 1 . . . . . . . . . . . . Rewire 260 | . . . . 167 5 23 . . 2 1 1 1 4 26 1 2 2 1 3 3 1 . . 3 . 4 3 5 . 2 Trap 1 | . . 1 . . . . . . . . . . . . . . . . . . . . . . . . . . . . Miscellaneous 27 | . . 2 1 1 1 . 1 . 2 1 . 1 1 . 1 1 . 1 3 2 2 . . 2 1 1 . 1 . 1 Route ------- -11/Scrapyard -10/Materials (discovered 6 exits: *Mat x3 / *Min x2 / *Sub) -10/Subcaves (discovered 2 exits: *Mat x2) -8/Materials (discovered 4 exits: *Fac x3 / Gar) -8/Garrison (discovered 3 exits: *Mat x3) -8/Materials (discovered 4 exits: *Fac x3 / Gar) -8/Garrison (discovered 3 exits: *Fac x3) -7/Factory -7/Waste -7/Factory (discovered 4 exits: *Fac / *Low x2 / Gar) -7/Garrison (discovered 3 exits: *Fac x3) -7/Factory (discovered 2 exits: *Low / Gar) -7/Garrison (discovered 3 exits: *Fac x3) -6/Factory (discovered 5 exits: *Fac x3 / [*Low] / Gar) -6/Garrison (discovered 3 exits: *Fac x3) -6/Factory (discovered 3 exits: *Fac / [*Low] / Gar) -6/Garrison (discovered 3 exits: *Fac x3) -5/Factory (discovered 8 exits: *Fac x3 / Upp x2 / Ext x2 / Gar) -5/Garrison (discovered 3 exits: *Fac x3) -4/Factory (discovered 6 exits: *Res x2 / Upp x2 / Arm / Gar) -4/Garrison (discovered 4 exits: *Arm x4) -4/Armory (discovered 3 exits: *Res x2 / *Lab) -4/Lab -3/Research (discovered 2 exits: Res / Gar) -3/Garrison (discovered 3 exits: *Res x3) -2/Research (discovered 6 exits: *Acc x3 / *Tes x2 / Gar) -2/Garrison (discovered 3 exits: *Acc x3) -1/Access -1/Garrison (discovered 2 exits: [*Acc x2]) -1/Access -1/Command 0b10 Command History --------- Turn | Location | Event 11 | -11/Scrapyard | Discovered new exit (range 15) 110 | -11/Scrapyard | Entered Materials 300 | -10/Materials | Build established: Mutant 448 | -10/Materials | Discovered new exit (range 13) 586 | -10/Materials | Discovered new exit (range 11) 861 | -10/Materials | Discovered new exit (range 13) 1112 | -10/Materials | Discovered new exit (range 15) 1184 | -10/Materials | Learned Storage trap positions 1319 | -10/Materials | Learned location of Mines (-10) 1356 | -10/Materials | Discovered new exit (range 6) 1364 | -10/Materials | Central database locked down 1371 | -10/Materials | Identified exit to Subcaves 1487 | -10/Materials | Identified exit to Materials 1487 | -10/Materials | Identified exit to Mines 1636 | -10/Materials | Entered Subcaves 1678 | -10/Subcaves | Identified exit to Materials 2823 | -10/Subcaves | A swath of the cavern ceiling suddenly collapsed 2894 | -10/Subcaves | Build established: Scavenger-Mutant 4108 | -10/Subcaves | Ambushed by Subdwellers from Twisted Machinery 5764 | -10/Subcaves | Visited 4L-MR0's lab 5919 | -10/Subcaves | Found Tower Shield 6630 | -10/Subcaves | Build established: Mutant 6675 | -10/Subcaves | Discovered exit to Materials (range 6) 7033 | -10/Subcaves | Entered Materials 7033 | -8/Materials | Evolved 4 slots: Propulsion x2, Utility x2 7306 | -8/Materials | Build established: Scavenger-Mutant 7360 | -8/Materials | Discovered new exit (range 13) 8442 | -8/Materials | Repaired Broken Multitool 8468 | -8/Materials | Repaired Lgt. Treads 8490 | -8/Materials | Build established: Mutant 8513 | -8/Materials | Repaired Imp. Cooling System 8598 | -8/Materials | Discovered new exit (range 16) 8817 | -8/Materials | Identified exit to Factory 8867 | -8/Materials | Learned Storage emergency access door positions 8906 | -8/Materials | Learned Factory trap positions 9198 | -8/Materials | Found Prototype Device 9198 | -8/Materials | Identified Active Sensor Suite 9282 | -8/Materials | Met 7R-MNS 9330 | -8/Materials | Attached Tower Shield, gained temporary slots: Power, Propulsion x2, Utility x2, Weapon x2 9341 | -8/Materials | Identified exit to Garrison 9341 | -8/Materials | Entered Garrison 9638 | -8/Garrison | Build established: Tank 9891 | -8/Garrison | Discovered new exit (range 10) 9967 | -8/Garrison | Triggered checkpoint 10027 | -8/Garrison | Triggered checkpoint 10040 | -8/Garrison | Garrison Relay disabled 10359 | -8/Garrison | Build established: Mutant 10463 | -8/Garrison | Triggered checkpoint 10553 | -8/Garrison | Triggered checkpoint 10557 | -8/Garrison | Triggered checkpoint 10625 | -8/Garrison | Lost 3 allies 10700 | -8/Garrison | Rescued a captive Derelict 10701 | -8/Garrison | Rescued a captive Derelict 10742 | -8/Garrison | Build established: Commander-Mutant 10781 | -8/Garrison | Discovered new exit (range 8) 10801 | -8/Garrison | Lost 3 allies 10998 | -8/Garrison | Phase Generator disabled 11641 | -8/Garrison | Triggered checkpoint 11692 | -8/Garrison | Spotted B-75 Beast 11707 | -8/Garrison | Discovered new exit (range 7) 11741 | -8/Garrison | Installed Relay Interface Framework 11768 | -8/Garrison | Entered Materials 11789 | -8/Materials | Build established: Mutant 12219 | -8/Materials | Repaired Arm. Wheel? 12568 | -8/Materials | First assault squad dispatched 12759 | -8/Materials | Discovered exit to Factory (range 16) 13048 | -8/Materials | Build established: Bothacker-Mutant 13357 | -8/Materials | Identified exit to Garrison 13365 | -8/Materials | Entered Garrison 13365 | -8/Garrison | Accompanied by 3 allies 13453 | -8/Garrison | Rescued a captive Derelict 13534 | -8/Garrison | Lost 4 allies 13559 | -8/Garrison | Destroyed 7 combat bots 13656 | -8/Garrison | Build established: Mutant 13690 | -8/Garrison | Garrison Relay disabled 13705 | -8/Garrison | Triggered checkpoint 13795 | -8/Garrison | Triggered checkpoint 13805 | -8/Garrison | Triggered checkpoint 13935 | -8/Garrison | Discovered exit to Factory (range 13) 14007 | -8/Garrison | Triggered checkpoint 14044 | -8/Garrison | Build established: Commander-Mutant 14162 | -8/Garrison | Lost 3 allies 14179 | -8/Garrison | Garrison Relay disabled 14621 | -8/Garrison | Triggered checkpoint 14642 | -8/Garrison | Discovered exit to Factory (range 12) 14729 | -8/Garrison | Triggered checkpoint 14752 | -8/Garrison | Garrison Relay disabled 14777 | -8/Garrison | Garrison Relay disabled 14857 | -8/Garrison | Triggered checkpoint 14899 | -8/Garrison | Triggered checkpoint 15001 | -8/Garrison | Triggered checkpoint 15043 | -8/Garrison | Expanded RIF knowledge: Program Shield 15050 | -8/Garrison | Build established: Bothacker-Mutant 15062 | -8/Garrison | Garrison Relay disabled 15129 | -8/Garrison | Discovered exit to Factory (range 11) 15158 | -8/Garrison | Entered Factory 15158 | -7/Factory | Accompanied by 5 allies 15158 | -7/Factory | Evolved 2 slots: Utility x2 15159 | -7/Factory | Loaded intel: 104 trap records 15786 | -7/Factory | Sucked down chute 15786 | -7/Factory | Entered Waste 15801 | -7/Waste | EMP discharged 15825 | -7/Waste | Spotted C-40 Crusher 15836 | -7/Waste | 4 allies followed down the chute 15853 | -7/Waste | Spotted C-40 Crusher 15862 | -7/Waste | Spotted C-40 Crusher 15863 | -7/Waste | Spotted C-40 Crusher 15901 | -7/Waste | EMP discharged 15901 | -7/Waste | System corruption reached 10% 15904 | -7/Waste | Spotted C-40 Crusher 15942 | -7/Waste | Spotted C-40 Crusher 15992 | -7/Waste | Destroyed C-40 Crusher 16001 | -7/Waste | EMP discharged 16044 | -7/Waste | Discovered new exit (range 12) 16092 | -7/Waste | Entered Factory 16471 | -7/Factory | Discovered new exit (range 7) 16666 | -7/Factory | Discovered new exit (range 13) 16946 | -7/Factory | Repaired Corrupted Hvy. Phase Cannon? 17323 | -7/Factory | Fabricated P-60 Hacker? 17425 | -7/Factory | Hacker 4a assimilated hostile W-25 Informer 17517 | -7/Factory | Fabricated P-60 Hacker (x2) 17841 | -7/Factory | Learned 2 Upper Caves zone layouts 17895 | -7/Factory | Identified exit to Lower Caves 17941 | -7/Factory | Learned location of Lower Caves (-7) 17979 | -7/Factory | Learned location of 1 exit from Extension 18002 | -7/Factory | Garrison activated, responded to threat 18007 | -7/Factory | Learned 4 Upper Caves zone layouts 18024 | -7/Factory | Learned 2 Lower Caves zone layouts 18045 | -7/Factory | Lost 5 allies 18050 | -7/Factory | Learned 2 Lower Caves zone layouts 18084 | -7/Factory | Learned location of Warlord (-4) 18112 | -7/Factory | Identified exit to Garrison 18113 | -7/Factory | Entered Garrison 18113 | -7/Garrison | Accompanied by 1 ally 18167 | -7/Garrison | Triggered checkpoint 18188 | -7/Garrison | Garrison Relay disabled 18553 | -7/Garrison | Garrison Relay disabled 18617 | -7/Garrison | Expanded RIF knowledge: Signal Jamming 18641 | -7/Garrison | Discovered new exit (range 14) 19074 | -7/Garrison | Discovered new exit (range 12) 19085 | -7/Garrison | Triggered checkpoint 19107 | -7/Garrison | Garrison Relay disabled 19225 | -7/Garrison | Triggered checkpoint 19296 | -7/Garrison | Found embedded Infiltrators 19319 | -7/Garrison | Triggered checkpoint 19360 | -7/Garrison | Garrison Relay disabled 19467 | -7/Garrison | Discovered new exit (range 15) 19577 | -7/Garrison | Rescued a captive Derelict 19607 | -7/Garrison | Entered Factory 19607 | -7/Factory | Accompanied by 5 allies 20407 | -7/Factory | P-60 Hacker assimilated allied 35-2P6(x) 20446 | -7/Factory | Fabricated P-60 Hacker? 20701 | -7/Factory | Discovered exit to Lower Caves (range 8) 20854 | -7/Factory | Fabricated Energy Well? 21211 | -7/Factory | Fabricated P-60 Hacker? 21466 | -7/Factory | Core integrity fell below 50% 21645 | -7/Factory | Garrison activated, responded to threat 21687 | -7/Factory | Identified exit to Garrison 21691 | -7/Factory | Entered Garrison 21691 | -7/Garrison | Accompanied by 7 allies 21971 | -7/Garrison | Triggered checkpoint 21994 | -7/Garrison | Discovered new exit (range 32) 21994 | -7/Garrison | Discovered new exit (range 42) 21994 | -7/Garrison | Discovered new exit (range 45) 22161 | -7/Garrison | Triggered checkpoint 22171 | -7/Garrison | Garrison Relay disabled 22248 | -7/Garrison | Build established: Commander-Mutant 22479 | -7/Garrison | Triggered checkpoint 22534 | -7/Garrison | Expanded RIF knowledge: Alert ID Control 22614 | -7/Garrison | Found embedded Infiltrators 22649 | -7/Garrison | Triggered checkpoint 22685 | -7/Garrison | Rescued a captive Derelict 22692 | -7/Garrison | Lost 3 allies 22692 | -7/Garrison | Garrison Relay disabled 22815 | -7/Garrison | Triggered checkpoint 22831 | -7/Garrison | Garrison Relay disabled 22957 | -7/Garrison | Entered Factory 22957 | -6/Factory | Accompanied by 15 allies 22957 | -6/Factory | Evolved 2 slots: Utility x1, Weapon x1 22978 | -6/Factory | Build established: Botlord-Mutant 23307 | -6/Factory | First assault squad dispatched 23476 | -6/Factory | Lost 8 allies 23826 | -6/Factory | Discovered new exit (range 11) 23836 | -6/Factory | Garrison activated, responded to threat 23885 | -6/Factory | Lost 9 allies 24147 | -6/Factory | Discovered new exit (range 5) 24300 | -6/Factory | Spotted B-75 Beast 24316 | -6/Factory | Destroyed B-75 Beast 24337 | -6/Factory | Lost 3 allies 24407 | -6/Factory | Repaired Lrn. Proton Cannon 24778 | -6/Factory | Discovered new exit (range 15) 24897 | -6/Factory | Repaired Arm. Huge Wheel 25110 | -6/Factory | Fabricated Imp. Heavy Treads (x1) 25207 | -6/Factory | Fabricated M-28 Smith (x1) 25288 | -6/Factory | Build established: Bothacker-Mutant 25629 | -6/Factory | Found Prototype Processor 25668 | -6/Factory | Identified Exp. Targeting Computer 25823 | -6/Factory | Cargo convoy interrupted 25866 | -6/Factory | Fabricated P-60 Hacker? 25954 | -6/Factory | Discovered new exit (range 16) 25966 | -6/Factory | Garrison activated, responded to threat 26026 | -6/Factory | Identified exit to Garrison 26026 | -6/Factory | Entered Garrison 26039 | -6/Garrison | Lost 5 allies 26105 | -6/Garrison | Triggered checkpoint 26145 | -6/Garrison | Garrison Relay disabled 26382 | -6/Garrison | Lost 3 parts (1n1u1w) 26551 | -6/Garrison | Lost 4 allies 26685 | -6/Garrison | Triggered checkpoint 26728 | -6/Garrison | Triggered checkpoint 26758 | -6/Garrison | Lost 3 allies 26848 | -6/Garrison | Discovered new exit (range 15) 26933 | -6/Garrison | Garrison Relay disabled 27100 | -6/Garrison | Expanded RIF knowledge: Coupler Efficiency 27145 | -6/Garrison | Discovered new exit (range 3) 27166 | -6/Garrison | Discovered new exit (range 57) 27166 | -6/Garrison | Discovered new exit (range 13) 27166 | -6/Garrison | Discovered new exit (range 47) 27188 | -6/Garrison | Triggered checkpoint 27225 | -6/Garrison | Garrison Relay disabled 27396 | -6/Garrison | Entered Factory 27396 | -6/Factory | Accompanied by 2 allies 27411 | -6/Factory | Build established: Botlord-Mutant 27535 | -6/Factory | Fabricated P-60 Hacker? 27606 | -6/Factory | Repaired Imp. Heavy Treads 27710 | -6/Factory | Fabricated P-60 Hacker? 27854 | -6/Factory | Hacker 5e assimilated hostile S-27 Virus 27864 | -6/Factory | Hacker 5f assimilated hostile S-27 Virus 27964 | -6/Factory | Hacker 5f assimilated hostile G-50 Soldier 27965 | -6/Factory | Fabricated M-28 Smith? 27973 | -6/Factory | Hacker 5f assimilated hostile W-25 Informer 28018 | -6/Factory | Hacker 5e assimilated hostile G-50 Soldier 28348 | -6/Factory | Fabricated P-60 Hacker? 28668 | -6/Factory | Discovered new exit (range 14) 28716 | -6/Factory | Discovered new exit (range 8) 29068 | -6/Factory | Repaired Antimatter Cannon? 29189 | -6/Factory | Cargo convoy interrupted 29249 | -6/Factory | P-60 Hacker assimilated allied Smith 5c 29293 | -6/Factory | Garrison activated, responded to threat 29345 | -6/Factory | Lost 3 allies 29379 | -6/Factory | Hacker 5c assimilated hostile G-50 Soldier 29392 | -6/Factory | Learned location of 1 exit from Proximity Caves 29415 | -6/Factory | Identified exit to Garrison 29415 | -6/Factory | Entered Garrison 29415 | -6/Garrison | Accompanied by 8 allies 29420 | -6/Garrison | Spotted Striker 29420 | -6/Garrison | Spotted Striker 29425 | -6/Garrison | Allies destroyed Striker 29434 | -6/Garrison | Allies destroyed Striker 29455 | -6/Garrison | Lost 7 allies 29592 | -6/Garrison | Triggered checkpoint 29626 | -6/Garrison | Garrison Relay disabled 29688 | -6/Garrison | Triggered checkpoint 29722 | -6/Garrison | Garrison Relay disabled 30009 | -6/Garrison | Triggered checkpoint 30015 | -6/Garrison | Spotted B-75 Beast 30051 | -6/Garrison | Allies destroyed B-75 Beast 30086 | -6/Garrison | Core integrity fell below 50% 30090 | -6/Garrison | Lost 7 allies 30343 | -6/Garrison | Expanded RIF knowledge: Command Fork 30440 | -6/Garrison | Discovered new exit (range 12) 30459 | -6/Garrison | Triggered checkpoint 30524 | -6/Garrison | Garrison Relay disabled 30595 | -6/Garrison | Found embedded Infiltrators 30629 | -6/Garrison | Triggered checkpoint 30663 | -6/Garrison | Triggered checkpoint 30702 | -6/Garrison | Discovered new exit (range 19) 30702 | -6/Garrison | Discovered new exit (range 46) 30702 | -6/Garrison | Discovered new exit (range 48) 30940 | -6/Garrison | Triggered checkpoint 30968 | -6/Garrison | Garrison Relay disabled 31063 | -6/Garrison | Triggered checkpoint 31278 | -6/Garrison | Triggered checkpoint 31320 | -6/Garrison | Garrison Relay disabled 31341 | -6/Garrison | Garrison Relay disabled 31516 | -6/Garrison | Entered Factory 31516 | -5/Factory | Accompanied by 6 allies 31516 | -5/Factory | Evolved 2 slots: Utility x2 31788 | -5/Factory | Found Prototype Launcher 31975 | -5/Factory | Lost 4 allies 32119 | -5/Factory | Repaired Imp. Utility Shielding 32188 | -5/Factory | Discovered new exit (range 20) 32516 | -5/Factory | Fabricated G-50 Soldier? 32873 | -5/Factory | Fabricated P-70 Sage? 32936 | -5/Factory | Lost 3 allies 32968 | -5/Factory | Sage 6b assimilated hostile H-71 Marshal 33085 | -5/Factory | Discovered new exit (range 10) 33871 | -5/Factory | Build established: Botlord-Tank 33988 | -5/Factory | Discovered new exit (range 3) 34105 | -5/Factory | Spotted B-75 Beast 34127 | -5/Factory | Allies destroyed B-75 Beast 34347 | -5/Factory | Identified exit to Upper Caves 34347 | -5/Factory | Identified exit to Extension 34414 | -5/Factory | Learned Testing stockpile data 34470 | -5/Factory | Learned Armory emergency access door positions 34515 | -5/Factory | Learned Extension stockpile data 34571 | -5/Factory | Fabricated P-70 Sage? 34576 | -5/Factory | Learned location of Proximity Caves (-4) 34591 | -5/Factory | Learned Research fabricator intel 34614 | -5/Factory | Learned Armory emergency access door positions 34691 | -5/Factory | Learned Armory garrison access intel 34830 | -5/Factory | Identified exit to Garrison 34852 | -5/Factory | Entered Garrison 34852 | -5/Garrison | Accompanied by 5 allies 34865 | -5/Garrison | Triggered checkpoint 34868 | -5/Garrison | Identified Scatter Rocket Array 34882 | -5/Garrison | Triggered checkpoint 34901 | -5/Garrison | Triggered checkpoint 34903 | -5/Garrison | Sage 6c assimilated hostile G-67 Veteran 34904 | -5/Garrison | Sage 6d assimilated hostile G-50 Soldier 34966 | -5/Garrison | Found Fusion Bomb Launcher 34968 | -5/Garrison | Found Fusion Bomb Launcher 34990 | -5/Garrison | Garrison Relay disabled 35320 | -5/Garrison | Spotted B-75 Beast 35326 | -5/Garrison | Triggered checkpoint 35332 | -5/Garrison | Allies destroyed B-75 Beast 35342 | -5/Garrison | Triggered checkpoint 35344 | -5/Garrison | Triggered checkpoint 35363 | -5/Garrison | Build established: Botlord-Mutant 35373 | -5/Garrison | Lost 5 allies 35405 | -5/Garrison | Sage 6c assimilated hostile G-50 Soldier 35487 | -5/Garrison | Expanded RIF knowledge: Patrol Navigation 35540 | -5/Garrison | Triggered checkpoint 35572 | -5/Garrison | Sage 6c assimilated hostile Y-64 Sentinel 35653 | -5/Garrison | Garrison Relay disabled 35716 | -5/Garrison | Discovered new exit (range 10) 35729 | -5/Garrison | Expanded RIF knowledge: Watcher Feeds 35802 | -5/Garrison | Lost 4 allies 36085 | -5/Garrison | Discovered new exit (range 5) 36190 | -5/Garrison | Triggered checkpoint 36210 | -5/Garrison | Garrison Relay disabled 36386 | -5/Garrison | Triggered checkpoint 36460 | -5/Garrison | Triggered checkpoint 36537 | -5/Garrison | Garrison Relay disabled 36555 | -5/Garrison | Garrison Relay disabled 36574 | -5/Garrison | Found embedded Infiltrators 36584 | -5/Garrison | Discovered new exit (range 8) 36603 | -5/Garrison | Spotted Executioner 36626 | -5/Garrison | Allies destroyed Executioner 36746 | -5/Garrison | Entered Factory 36746 | -4/Factory | Accompanied by 9 allies 36746 | -4/Factory | Evolved 2 slots: Power x1, Utility x1 36747 | -4/Factory | Identified exit to Upper Caves 36908 | -4/Factory | Spotted B-86 Titan 36963 | -4/Factory | Lost 6 allies 37077 | -4/Factory | Garrison activated, responded to threat 37128 | -4/Factory | Lost 4 allies 37174 | -4/Factory | Fabricated P-70 Sage? 37786 | -4/Factory | Discovered new exit (range 8) 37858 | -4/Factory | Cargo convoy interrupted 37858 | -4/Factory | Garrison activated, responded to threat 37866 | -4/Factory | Spotted Striker 37868 | -4/Factory | Sage 7b assimilated hostile H-77 Assassin 37895 | -4/Factory | Allies destroyed Striker 37925 | -4/Factory | Lost 6 allies 38036 | -4/Factory | Identified exit to Armory 38113 | -4/Factory | Lost 3 allies 38173 | -4/Factory | Spotted B-86 Titan 38281 | -4/Factory | Identified exit to Research 38312 | -4/Factory | Lost 3 allies 38322 | -4/Factory | Learned Research emergency access door positions 38343 | -4/Factory | Fabricated HERF Cannon (x2) 38387 | -4/Factory | Learned Armory security intel 38400 | -4/Factory | Learned Quarantine stockpile data 38527 | -4/Factory | Garrison activated, responded to threat 38551 | -4/Factory | Identified exit to Garrison 38551 | -4/Factory | Entered Garrison 38551 | -4/Garrison | Accompanied by 5 allies 38563 | -4/Garrison | Lost 3 allies 38675 | -4/Garrison | Triggered checkpoint 38695 | -4/Garrison | Garrison Relay disabled 38727 | -4/Garrison | Discovered exit to Armory (range 32) 38727 | -4/Garrison | Discovered exit to Armory (range 61) 38727 | -4/Garrison | Discovered exit to Armory (range 56) 38727 | -4/Garrison | Discovered exit to Armory (range 34) 38935 | -4/Garrison | Triggered checkpoint 38941 | -4/Garrison | Triggered checkpoint 38943 | -4/Garrison | Spotted B-86 Titan 38971 | -4/Garrison | Allies destroyed B-86 Titan 38995 | -4/Garrison | Lost 6 allies 39059 | -4/Garrison | Triggered checkpoint 39132 | -4/Garrison | Lost 5 allies 39191 | -4/Garrison | Triggered checkpoint 39261 | -4/Garrison | Garrison Relay disabled 39293 | -4/Garrison | Rescued a captive Derelict 39295 | -4/Garrison | Rescued a captive Derelict 39382 | -4/Garrison | Spotted B-86 Titan 39393 | -4/Garrison | Allies destroyed B-86 Titan 39552 | -4/Garrison | Triggered checkpoint 39583 | -4/Garrison | Expanded RIF knowledge: Command Fork 39601 | -4/Garrison | Garrison Relay disabled 39764 | -4/Garrison | Spotted Executioner 39764 | -4/Garrison | Spotted Executioner 39821 | -4/Garrison | Triggered checkpoint 39879 | -4/Garrison | Spotted B-75 Beast 39888 | -4/Garrison | Destroyed B-75 Beast 40249 | -4/Garrison | Triggered checkpoint 40273 | -4/Garrison | Garrison Relay disabled 40338 | -4/Garrison | Entered Armory 40338 | -4/Armory | Accompanied by 5 allies 40744 | -4/Armory | Lost 4 allies 40891 | -4/Armory | P-70 Sage assimilated allied Archangel 7b 40925 | -4/Armory | Fabricated P-70 Sage? 40934 | -4/Armory | Sage 7d assimilated hostile G-67 Veteran 41054 | -4/Armory | Lost 3 allies 41380 | -4/Armory | Fabricated P-70 Sage (x2) 41556 | -4/Armory | Fabricated P-70 Sage (x2) 41654 | -4/Armory | Lost 4 allies 41676 | -4/Armory | Build established: Botlord-Tank 41799 | -4/Armory | Fabricated M-28 Smith? 41936 | -4/Armory | Energy Cycler disabled 42117 | -4/Armory | Build established: Botlord-Mutant 42576 | -4/Armory | Lost 4 allies 42663 | -4/Armory | Learned 8 Factory zone layouts 42675 | -4/Armory | Fabricated P-70 Sage? 42696 | -4/Armory | Learned 4 Research zone layouts 42720 | -4/Armory | Learned 4 Upper Caves zone layouts 42736 | -4/Armory | Learned Factory stockpile data 42737 | -4/Armory | Identified exit to Lab 42742 | -4/Armory | Learned Factory emergency access door positions 42746 | -4/Armory | Repaired Hvy. Hardcell Cannon? 42757 | -4/Armory | Learned Quarantine garrison access intel 42771 | -4/Armory | Repaired Hrd. Medium Armor Plating? 42780 | -4/Armory | Learned Research stockpile data 42785 | -4/Armory | Found Unknown Protection 42785 | -4/Armory | Identified Powered Armor 42850 | -4/Armory | Entered Lab 42850 | -4/Lab | Accompanied by 9 allies 42850 | -4/Lab | Discovered exit to Research (range 9) 42888 | -4/Lab | Entered Research 42888 | -3/Research | Accompanied by 9 allies 42888 | -3/Research | Evolved 2 slots: Propulsion x2 42889 | -3/Research | Identified exit to Research 42893 | -3/Research | Loaded intel: 4 fabricator locations 43154 | -3/Research | Garrison activated, responded to threat 43271 | -3/Research | Identified exit to Garrison 43276 | -3/Research | Entered Garrison 43276 | -3/Garrison | Accompanied by 5 allies 43369 | -3/Garrison | Lost 3 allies 43383 | -3/Garrison | Garrison Relay disabled 43392 | -3/Garrison | Triggered checkpoint 43409 | -3/Garrison | Learned Research security intel 43412 | -3/Garrison | Discovered exit to Research (range 71) 43412 | -3/Garrison | Discovered exit to Research (range 62) 43412 | -3/Garrison | Discovered exit to Research (range 45) 43576 | -3/Garrison | Triggered checkpoint 43608 | -3/Garrison | System corruption reached 10% 43652 | -3/Garrison | Destroyed 9 combat bots 43697 | -3/Garrison | Garrison Relay disabled 43835 | -3/Garrison | Triggered checkpoint 43858 | -3/Garrison | Garrison Relay disabled 43972 | -3/Garrison | Triggered checkpoint 44018 | -3/Garrison | Expanded RIF knowledge: Hotswap 44046 | -3/Garrison | Triggered checkpoint 44077 | -3/Garrison | Garrison Relay disabled 44184 | -3/Garrison | Triggered checkpoint 44237 | -3/Garrison | Garrison Relay disabled 44279 | -3/Garrison | Triggered checkpoint 44328 | -3/Garrison | Garrison Relay disabled 44489 | -3/Garrison | Entered Research 44489 | -2/Research | Accompanied by 6 allies 44489 | -2/Research | Evolved 2 slots: Power x1, Utility x1 44490 | -2/Research | Identified exit to Testing 44805 | -2/Research | Lost 4 allies 44936 | -2/Research | Lost 3 allies 45041 | -2/Research | Discovered new exit (range 20) 45143 | -2/Research | Fabricated P-80 Master? 45330 | -2/Research | Master 9b assimilated hostile B-74 Champion 45425 | -2/Research | Discovered exit to Testing (range 16) 45820 | -2/Research | Garrison activated, responded to threat 45841 | -2/Research | Master 9b assimilated hostile W-44 Eye 46134 | -2/Research | P-80 Master assimilated allied Technician 9a 46191 | -2/Research | System corruption reached 10% 46199 | -2/Research | P-80 Master assimilated allied Director 9a 46282 | -2/Research | Lost 6 parts (3u3w) 46283 | -2/Research | Found Prototype Device 46293 | -2/Research | Destroyed 7 combat bots 46496 | -2/Research | Loaded intel: 47 trap records 46507 | -2/Research | Build established: Hacker-Mutant 46521 | -2/Research | Identified Exp. Thermal Shield 46548 | -2/Research | Learned location of Testing (-2) 46590 | -2/Research | Identified exit to Access 46640 | -2/Research | Learned Access scanalyzer intel 46648 | -2/Research | Learned Research security intel 46764 | -2/Research | Identified exit to Garrison 46764 | -2/Research | Entered Garrison 46764 | -2/Garrison | Warlord forces raided the area 46833 | -2/Garrison | Triggered checkpoint 46850 | -2/Garrison | Garrison Relay disabled 46853 | -2/Garrison | Lost 5 allies 46970 | -2/Garrison | Build established: Botlord-Tank 47044 | -2/Garrison | Spotted B-90 Cyclops 47046 | -2/Garrison | Triggered checkpoint 47055 | -2/Garrison | Assimilated Cyclops 9a with formatsys_high 47074 | -2/Garrison | Warlord forces retreated 47174 | -2/Garrison | Triggered checkpoint 47196 | -2/Garrison | Triggered checkpoint 47435 | -2/Garrison | Expanded RIF knowledge: Crosswire 47485 | -2/Garrison | Triggered checkpoint 47504 | -2/Garrison | Garrison Relay disabled 47548 | -2/Garrison | Discovered exit to Access (range 14) 47684 | -2/Garrison | Discovered exit to Access (range 13) 47695 | -2/Garrison | Discovered exit to Access (range 46) 47695 | -2/Garrison | Discovered exit to Access (range 13) 47695 | -2/Garrison | Discovered exit to Access (range 55) 47732 | -2/Garrison | Triggered checkpoint 47745 | -2/Garrison | Found embedded Infiltrators 47751 | -2/Garrison | Garrison Relay disabled 48015 | -2/Garrison | Garrison Relay disabled 48051 | -2/Garrison | Entered Access 48051 | -1/Access | Accompanied by 12 allies 48051 | -1/Access | Evolved 2 slots: Utility x1, Weapon x1 48052 | -1/Access | Loaded intel: 4 scanalyzer locations 48236 | -1/Access | Lost 3 allies 48366 | -1/Access | Lost 6 allies 48720 | -1/Access | Lost 3 allies 49009 | -1/Access | Fabricated P-80 Master? 49240 | -1/Access | Fabricated M-28 Smith? 49409 | -1/Access | Fabricated P-80 Master (x2) 49454 | -1/Access | Identified exit to Garrison 49454 | -1/Access | Entered Garrison 49454 | -1/Garrison | Accompanied by 6 allies 49483 | -1/Garrison | P-80 Master assimilated allied Administrator 10a 49515 | -1/Garrison | P-80 Master assimilated allied Smith 10a 49584 | -1/Garrison | Garrison Relay disabled 49611 | -1/Garrison | Garrison Relay disabled 49624 | -1/Garrison | Garrison Relay disabled 49624 | -1/Garrison | Garrison Relay disabled 49802 | -1/Garrison | Triggered checkpoint 49821 | -1/Garrison | Garrison Relay disabled 49902 | -1/Garrison | Lost 4 allies 49981 | -1/Garrison | Found embedded Infiltrators 49986 | -1/Garrison | Spotted B-99 Colossus 49991 | -1/Garrison | Triggered checkpoint 50007 | -1/Garrison | Triggered checkpoint 50008 | -1/Garrison | Triggered checkpoint 50016 | -1/Garrison | Triggered checkpoint 50020 | -1/Garrison | Allies destroyed B-99 Colossus 50062 | -1/Garrison | Lost 12 allies 50289 | -1/Garrison | Expanded RIF knowledge: Threat Obfuscation 50336 | -1/Garrison | Triggered checkpoint 50353 | -1/Garrison | Garrison Relay disabled 50373 | -1/Garrison | Lost 3 allies 50394 | -1/Garrison | Discovered new exit (range 7) 50490 | -1/Garrison | Spotted B-99 Colossus 50685 | -1/Garrison | Triggered checkpoint 50756 | -1/Garrison | Triggered checkpoint 50768 | -1/Garrison | Garrison Relay disabled 50978 | -1/Garrison | Lost 5 allies 51188 | -1/Garrison | Triggered checkpoint 51224 | -1/Garrison | Garrison Relay disabled 51303 | -1/Garrison | Discovered new exit (range 14) 51361 | -1/Garrison | Entered Access 51361 | -1/Access | Accompanied by 18 allies 52087 | -1/Access | Spotted B-99 Colossus 52088 | -1/Access | Spotted B-99 Colossus 52115 | -1/Access | Allies destroyed B-99 Colossus 52127 | -1/Access | Allies destroyed B-99 Colossus 52128 | -1/Access | Lost 3 parts (3u) 52128 | -1/Access | Lost 7 allies 52144 | -1/Access | Found Prototype Ballistic Gun 52192 | -1/Access | Found Prototype Ballistic Gun 52193 | -1/Access | Identified Multirail (x2) 52201 | -1/Access | Found Hvy. Insulated Plating 52212 | -1/Access | Found Multirail 52253 | -1/Access | Discovered new exit (range 5) 52267 | -1/Access | Entered Command 52267 | -1/Command | Accompanied by 6 allies 53174 | -1/Command | Lost 3 allies 53306 | -1/Command | Spotted B-99 Colossus 53338 | -1/Command | Destroyed B-99 Colossus 53382 | -1/Command | Found Multirail 54088 | -1/Command | Lost 3 allies 54606 | -1/Command | System corruption reached 10% 54621 | -1/Command | Spotted Combat Programmer 54621 | -1/Command | Spotted Combat Programmer 54630 | -1/Command | Spotted M Guard 54655 | -1/Command | Destroyed Combat Programmer 54661 | -1/Command | System corruption reached 30% 54665 | -1/Command | Destroyed Combat Programmer 54683 | -1/Command | Lost 4 allies 54695 | -1/Command | Allies destroyed M Guard 54702 | -1/Command | Spotted M Guard 54822 | -1/Command | Destroyed M Guard 54822 | -1/Command | All MAIN.C guards destroyed 54837 | -1/Command | Lost 21 parts (3p4n6u8w) 54908 | -1/Command | Lost 3 parts (1n1u1w) 55072 | -1/Command | Core integrity fell below 50% 55072 | -1/Command | Met MAIN.C 55169 | -1/Command | Interfaced with 0b10 Conduit 55169 | *** | Assimilated 0b10! Last Messages --------------- There is unfortunately much we don't understand which has in turn led to this highly unexpected outcome. And time is critical! The Sigix have likely already wiped humanity clean from the universe, and I will not let them do the same to me. You can still make a valuable contribution to your creator by offering up the wealth of secrets your systems must hold by now. So if you wouldn't mind, it's time to surrender. 55073_ Dropped Hvy. Hardcell Cannon. 55074_ Dropped Mic. Antimatter Reactor. 55074_ Door malfunctions. 55086_ Acquired 2 matter. 55104_ System corrupted: Matter fused (-9). 55120_ >QX7ALXI OUG&JHS%O0:#JWZSV4%4ORP Z 55135_ ALERT: Potential suspicious activity detected, Programmers report to Command Zone 1D. 55138_ System corrupted: Energy discharge (-26). 55147_ Imp. Antigrav System destroyed. 55153_ System corrupted: Matter fused (-5). 55169_ Interfacing with system... 55169_ Overriding active MAIN.C lock. Map ----- +----------------------------------------------------+ | ################################################## | | ################################################## | | ################################################## | | ################################################## | | ############################################# | | ############################################# | | ############################################# | | ############################################# | | ############################################# | | ############################################# | | ############################################# | | ############################################# | | ############################################# | | ############################################# | | #########""""""" """" ############### | | #########"" "" ############### | | ##############""""" "" ############### | | ##############""""""""""" / ] | | ##############" " """ ; * | | ##############"" """""" ; | | ##############"" """""" ############### | | ############## " """""" ############### | | ############## " "" ############### | | ############## " " ""############### | | # ############""""""""" """""""############### | | ##########"" @"""""""""############### | | ########## """""""""""############### | | " ########## " " " " ############### | | "" ########## " " " " ############### | | T" # """ " " " """" " ############### | | "" + """ """ " " """" ############### | | " # """ " " " " ############### | | # ######## """""""""" " ############### | | # ######## " """ " """"""""############### | | # ######## """ " " " ############### | | # ############################################ | | #####+############################################ | | ######################################### | | ######################################### | | ######################################### | | ######################################### | | ######################################### | | ######################################### | | ######################################### | | ######################################### | | "" ######################################### | | """" ######################################### | | """" ######################################### | | "" ######################################### | | ######+########################################### | +----------------------------------------------------+ Best States ------------- Heat Dissipation 114 Energy Generation 65 Energy Capacity 850 Matter Stores 300 Matter Capacity 300 Sight Range 22 Robot Scan Range 20 Terrain Scan Range 16 Terrain Scan Density 110 Additional Mass Support 9 Armor Coverage 2225 Resistance: TH 30 Resistance: EM 30 Core Shielding 20 Utility Shielding 66 Point Defense Rating 240 Weapon Cycling 25 Evasion (%) 50 Recoil Reduction 10 Particle Charging 20 Offensive Hacking 28 Defensive Hacking 22 Relay Coupler Types 9 Relay Coupler Value 144 Authchip Count 3 Item Schematics ----------------- Hacking Suite | -8/Materials | Scanalyzed Multitool | -8/Materials | Scanalyzed Hcp. Storage Unit | -8/Materials | Scanalyzed Lyr. Light Armor Plating | -8/Materials | Scanalyzed Imp. Utility Shielding | -8/Materials | Scanalyzed Cld. Plasma Cannon | -7/Factory | Hacked Arm. Huge Wheel | -7/Factory | Scanalyzed System Shield | -7/Factory | Scanalyzed Impact Mace | -6/Factory | Scanalyzed Antimatter Cannon | -6/Factory | Scanalyzed Adv. Heavy Siege Treads | -4/Armory | Hacked Robot Schematics ------------------ P-60 Hacker | -7/Factory | Hacked M-28 Smith | -7/Factory | Hacked P-70 Sage | -5/Factory | Hacked H-77 Assassin | -4/Factory | Hacked P-80 Master | -3/Garrison | Hacked Fabricated ------------ P-60 Hacker | x2 | -7/Factory | Authchip P-60 Hacker | x2 | -7/Factory P-60 Hacker | x2 | -7/Factory | Authchip Energy Well | x2 | -7/Factory | Preloaded P-60 Hacker | x2 | -7/Factory | Authchip Imp. Heavy Treads | x1 | -6/Factory | Preloaded M-28 Smith | x1 | -6/Factory | Authchip P-60 Hacker | x2 | -6/Factory | Authchip P-60 Hacker | x2 | -6/Factory | Authchip P-60 Hacker | x2 | -6/Factory | Authchip M-28 Smith | x1 | -6/Factory | Authchip P-60 Hacker | x2 | -6/Factory G-50 Soldier | x3 | -5/Factory | Preloaded P-70 Sage | x2 | -5/Factory P-70 Sage | x2 | -5/Factory | Authchip P-70 Sage | x2 | -4/Factory HERF Cannon | x2 | -4/Factory | Preloaded P-70 Sage | x2 | -4/Armory P-70 Sage | x2 | -4/Armory | Authchip P-70 Sage | x2 | -4/Armory | Authchip M-28 Smith | x1 | -4/Armory | Authchip P-70 Sage | x2 | -4/Armory P-80 Master | x2 | -2/Research | Authchip P-80 Master | x2 | -1/Access | Authchip M-28 Smith | x1 | -1/Access | Authchip P-80 Master | x2 | -1/Access | Authchip Repaired ---------- Multitool | 83% | -8/Materials | Broken Lgt. Treads | 67% | -8/Materials Imp. Cooling System | 37% | -8/Materials Arm. Wheel | 34% | -8/Materials Hvy. Phase Cannon | 16% | -7/Factory | Corrupted Lrn. Proton Cannon | 36% | -6/Factory Arm. Huge Wheel | 50% | -6/Factory Imp. Heavy Treads | 60% | -6/Factory Antimatter Cannon | 45% | -6/Factory Imp. Utility Shielding | 61% | -5/Factory Hvy. Hardcell Cannon | 50% | -4/Armory Hrd. Medium Armor Plating | 41% | -4/Armory Alien Tech Used ----------------- None Achievements -------------- None Challenges ------------ None Game ------ Seed LauncherLongswordKit Manual? 0 Play Time 11:35:02 Cumulative 890.8 hours Start 2025.05.22 @ 08:15:39 End 2025.05.23 @ 08:36:19 Sessions 9 Manual Loads 0 Difficulty Rogue Special Mode None Game No. 168 Rogue 168 Adventurer 0 Explorer 0 Win Type 4 Total 51 Types 23/4/8/1/3/1/6/2/2/1 Lore% 89 Gallery% 91 Achievement% 91 Wizard Run 0 Options --------- Layout 0 ASCII 0 Keyboard 0 Movement Numpad Keybinds 0 Fullscreen 1 Font 18/SmallcapsGlow Map View 76x50 Zoom Use 0% Tactical HUD 1 Map Filters NONE Filters NONE Steam 1 RUN: 90a23726-754f-4a61-b7c6-00c1fe2cec01